{"text_format":"1","workbook":"xlsx","n_sheets":7,"sheets":["Instructivo","Estructura","Diagnóstico_RR","Formulas","Segunda línea","Mapa de Aseguramiento","Hoja2"],"not_rendered":{"charts":0,"images":2,"macros":1,"external_links":0,"defined_names":3,"comments":1,"pivot_tables":0},"unopened":[],"bounds":{"document_bytes":16777216,"sheet_cells":100000,"rows_first":2000,"rows_last":500,"rows_between":2000,"halvings":0,"cell_chars":16384,"cell_head_chars":4096},"cells_cut":0,"cells_raw":0,"read":"whole","date_system":"1900"}

{"sheet":"Instructivo","index":0,"n_rows":7,"n_cols":3,"rows_kept":7,"cut":false,"hidden":false,"merged":[[1,1,1,17],[3,1,3,17],[6,2,90,16]]}
[]
[null,"ESTRUCTURA LÍNEAS DE DEFENSA "]
[]
[null,"INSTRUCCIONES DE DILIGENCIAMIENTO"]
[]
[]
[null,null,"Este archivo hace parte de un conjunto de herramientas que le permitirán desarrollar un ejercicio de identificación del modelo de las líneas de defensa  con el propósito de que la entidad establezca e identifique las responsabilidades y roles que se distribuye a través de sus servidores frente a la gestión del riesgo y el control. Este instrumento se constituye como una guía para facilitar el proceso de estructuración de las líneas de defensa. \nEste archivo cuenta con cuatro (4) hojas de Excel de interés para quien lo diligencie, las cuales se explicaran a continuación:\n\nESTRUCTURA LÍNEAS DE DEFENSA:\n\nLa presentación de este archivo busca que el usuario conozca los conceptos básicos para desarrollar el ejercicio de líneas de defensa en su entidad.  Por esta razón, presenta la estructura de cada una de las líneas de defensa consideradas en este modelo a través de la descripción de sus integrantes y las responsabilidades generales ; dicha estructura corresponde a la presentada en el Manual Operativo del MIPG - Versión 2. \n\nDIAGNÓSTICO DE ROLES Y RESPONSABILIDADES:\n\nCorresponde al primer archivo que el usuario debe diligenciar, para ello debe tener en cuenta las siguientes consideraciones:\n\nAspectos claves de éxito: corresponden a los programas, proyectos, procesos, sistemas, entre otros de la entidad que agregan valor para el cumplimiento de los objetivos institucionales. El listado presentado corresponde a un ejemplo de algunos aspectos claves los cuales pueden ser modificados y ajustados a la operación de la entidad.  \n\nResponsables- Cargo: Corresponde a los posibles cargos que se pueden encontrar en una entidad. El listado presentado corresponde a un ejemplo de algunos cargos. \n\nModo de diligenciamiento: teniendo en cuenta los aspectos claves de éxito listados sobre las filas y los responsables listados sobre las columnas, se deben identificar los responsables sobre cada uno de los componentes de los aspectos claves. En la parte superior del archivo se presentan cuatro componentes (Planear, Aprobar, Ejecutar y Verificar) que deben ser ubicados en la casilla en la que se entrecruce un aspecto clave de éxito con un responsable. Cada componente asociado a un aspecto puede tener uno o más responsables por lo que puede estar ubicado en una o más casillas al mismo tiempo. \nA continuación se presenta un ejemplo de diligenciamiento: \n \nComo se evidencia en el ejemplo del aspecto clave de éxito de la gestión del talento humano, la responsabilidad sobre los cuatro componentes recae sobre 3 cargos de la siguiente manera:\nRepresentante legal: Aprua\nJefe de Oficina (quien en este caso puede ser el director o coordinador de talento humano) – Planea, Verifica y Ejecuta. \nProfesional – Ejecuta. \nEn el ejemplo, el jefe de oficina y el profesional llevan a cabo tareas de ejecución porque pueden ejecutar diferentes etapas asociadas a la gestión del talento humano. De la misma manera, en la práctica cada uno de los componentes (Planear, Verificar, Aprobar y Ejecutar) puede ser llevado a cabo por uno o más cargos o responsables.\n \nIDENTIFICACIÓN SEGUNDA LINEA DE DEFENSA \n\nEl archivo asociado a la identificación de la segunda línea de defensa tiene en cuenta los aspectos clave de éxito enunciados en el archivo de diagnóstico de roles y responsabilidades. El objetivo de este documento es identificar para cuales actividades de éxito existe una segunda línea de defensa y para cuáles no. \nEl diligenciamiento de cada una de las columnas del archivo se describe a continuación: \nAspectos clave de éxito: son los mismos aspectos clave enunciados en el archivo de roles y responsabilidades y sobre los cuales se evaluara la existencia de una segunda línea de defensa.\nRiesgo Asociado: para cada uno de los aspectos clave se deben identificar uno o más riesgos sobre los cuales se han establecido controles. \nResponsable: Al interior de la entidad debe haber uno o varios responsables sobre un aspecto clave de éxito. En esta casilla deben colocarse todos los responsables de los que se tenga conocimiento están asociados al aspecto clave de éxito. \nÁrea Funcional: Los responsables pertenecen a áreas funcionales por lo que se debe identificar las mismas. Por otro lado, existe la posibilidad de que no haya un responsable individual de un aspecto de éxito sino que dicha responsabilidad recaiga en un área funcional como un todo. En este caso, se debe identificar el área encargada. \n\nUna vez se identifiquen los aspectos clave de éxito, los riesgos asociados al mismo y los responsables del aspecto clave, se procede a identificar si estos pertenecen o no a la segunda línea de defensa. Para tales fines se debe dar respuesta a 3 preguntas que se definen como 3 criterios. \nCriterios para la identificación de la segunda línea de defensa: \n• ¿El responsable o área funcional encargada del aspecto clave de éxito pertenece a la Media o Alta Gerencia?\n• ¿El área funcional o responsable responde ante la Alta Dirección por el aspecto clave de éxito?\n• ¿El área funcional o responsable realiza actividades de seguimiento?\nEn caso de que la respuesta sea afirmativa, se debe colocar una X en la casilla asociada a cada una de las preguntas. \nClasificación: esta casilla se llena automáticamente una vez se responden los criterios para la identificación de la segunda línea de defensa. De esta manera, el usuario sabrá de inmediato si de acuerdo a las características identificadas el responsable pertenece a la primera o a la segunda línea de defensa. \nPara las actividades en las que la clasificación resulte en la primera línea de defensa no se debe seguir diligenciando el archivo. Por otro lado, aquellas actividades para las que se identifique una segunda línea de defensa deben diligenciar las columnas restantes. \nFunciones de aseguramiento: las funciones de aseguramiento son aquellas funciones que se llevan a cabo sobre los controles que se han establecido en la primera línea de defensa. Una función de aseguramiento tiene un carácter global a comparación de los controles que han sido establecidos de manera directa para el manejo de riesgos. \nCriterios evaluadores de la función de aseguramiento: Existen 4 criterios bajo los cuales se evalúa si una función de aseguramiento ha sido establecida de manera adecuada: \n• Establecimiento del objetivo y alcance de la función de aseguramiento. \n• Metodología establecida para la función de aseguramiento. \n• Si la función de aseguramiento cuenta con responsables claramente definidos. \n• Metodología para la comunicación de resultados y el manejo de información. \nEn la casilla asociada a cada uno de estos criterios el usuario debe colocar un numero entre 1 y 5 de acuerdo a como considere se lleve dicha tarea en su entidad. Una vez se han colocado los 4 valores, se obtendrá un total que determinará el nivel de confianza de aseguramiento provisto por la función descrita. Dicho nivel de confianza puede ser bajo, medio o alto. \nLas columnas no especificadas en este instructivo se diligencian de manera automática a medida que el usuario agrega información dentro del archivo. \n\nINTERPRETACIÓN NIVEL DE ASEGURAMIENTO\n\nEste archivo es de carácter informativo y se presenta con el objetivo de que el usuario pueda interpretar con mayor facilidad que quiere decir tener un nivel bajo, medio o alto de aseguramiento y cuáles son las implicaciones que dicha valoración puede traer y las acciones que se deben tomar. \n\nMAPA DE ASEGURAMIENTO \n\nEl mapa de aseguramiento busca consolidar la información de la segunda y tercera líneas de defensa de la entidad relacionando los aspectos clave de éxito, los riesgos asociados al mismo, sus responsables y áreas funcionales. \nLa información aquí consolidada proviene de los otros archivos que han sido previamente diligenciados. \n\n"]

{"sheet":"Estructura","index":1,"n_rows":10,"n_cols":4,"rows_kept":10,"cut":false,"hidden":false,"merged":[[0,1,1,1],[0,2,0,3],[1,2,1,3],[3,1,3,2]]}
[null,null,"ESTRUCTURA LÍNEAS DE DEFENSA "]
[null,null,"INSTITUTO DISTRITAL DE TURISMO"]
[]
[]
[]
[null,"LÍNEAS DE DEFENSA ","INTEGRANTES ","RESPONSABILIDAD"]
[null,"Línea Estratégica","Alta Dirección y Comité Institucional de Coordinación de Control Interno.\n","Tendrá la responsabilidad de definir el marco general para la gestión del riesgo (política de administración del riesgo) y garantizar el cumplimiento de los planes de la entidad.\n\nAnaliza los riesgos y amenazas institucionales al cumplimiento del os planes estratégicos (objetivos, metas, indicadores)"]
[null,"Primera Línea de Defensa","Dependiendo de la estructura organizacional de la entidad (organigrama), Líderes de proceso y sus equipos (En general servidores públicos en todos los niveles de la organización).","Garantizan la gestión en el día a día, en conjunto con sus equipos de trabajo.\n\nSe encarga de identificar, evaluar, controlar y mitigar los riesgos.\n\nSon responsables de implementar acciones correctivas y detectar fallas en los controles."]
[null,"Segunda Línea de Defensa","Media y Alta Gerencia: Jefes de planeación o quienes hagan sus veces, coordinadores de equipos de trabajo, comités de riesgos (donde existan), comité de contratación, áreas financieras, de TIC, entre otros que generen información para el Aseguramiento de la operación.\n","Corresponde establecer mecanismos que les permitan ejecutar un seguimiento o autoevaluación permanente de la gestión, orientando y generando alertas a la 1ª línea de defensa. \n\nSupervisa la implementación de prácticas de gestión eficaces por parte de la primera línea.\n"]
[null,"Tercera  Línea de Defensa","A cargo de la Oficina de Control Interno, Auditoría Interna o quién haga sus veces.\n","A traves de un enfoque basada en riesgos, proporciona aseguramiento sobre la eficacia de ka gestión del riesgo y control interno a la alta dirección "]

{"sheet":"Diagnóstico_RR","index":2,"n_rows":267,"n_cols":5,"rows_kept":267,"cut":false,"hidden":true,"merged":[[169,0,176,0],[169,1,176,1],[178,0,185,0],[178,1,185,1],[142,0,149,0],[142,1,149,1],[151,1,158,1],[151,0,158,0],[160,0,167,0],[160,1,167,1],[115,0,122,0],[115,1,122,1],[124,0,131,0],[124,1,131,1],[133,0,140,0],[133,1,140,1],[88,1,95,1],[88,0,95,0],[97,0,104,0],[97,1,104,1],[106,0,113,0],[106,1,113,1],[61,0,68,0],[61,1,68,1],[70,0,77,0],[70,1,77,1],[79,0,86,0],[79,1,86,1],[34,0,41,0],[34,1,41,1],[43,0,50,0],[43,1,50,1],[52,0,59,0],[52,1,59,1],[7,0,14,0],[7,1,14,1],[16,0,23,0],[16,1,23,1],[25,1,32,1],[25,0,32,0],[0,0,1,1],[0,2,0,4],[1,2,1,4],[2,0,2,4],[3,0,5,0],[3,1,5,1],[3,2,3,4],[4,4,5,4],[4,2,5,2],[4,3,5,3],[214,1,221,1],[250,0,257,0],[250,1,257,1],[259,0,266,0],[259,1,266,1],[214,0,221,0],[223,0,230,0],[223,1,230,1],[232,0,239,0],[232,1,239,1],[241,0,248,0],[241,1,248,1],[187,0,194,0],[187,1,194,1],[196,0,203,0],[196,1,203,1],[205,0,212,0],[205,1,212,1]]}
[null,null,"DIAGNÓSTICO DE ROLES Y RESPONSABILIDADES"]
[null,null,{"$f":"Estructura!C2","v":"INSTITUTO DISTRITAL DE TURISMO"}]
["P: Planea o diseña la actividad     A: Aprueba la actividad o su salida (producto/servicio)    \nE: Ejecuta la actividad                     V: Verifica la actividad "]
["No. ","ASPECTO CLAVE DE ÉXITO\n(Programa, Proyecto, Proceso, Sistema, entre otros)","RESPONSABLE - CARGO"]
[null,null,"CARGO","AREA","COMPONENTE"]
[]
[]
[1,"Planeación Estratégica","Seleccione…",null,"Seleccione…"]
[null,null,"Seleccione…",null,"Seleccione…"]
[null,null,"Seleccione…",null,"Seleccione…"]
[null,null,"Seleccione…",null,"Seleccione…"]
[null,null,"Seleccione…",null,"Seleccione…"]
[null,null,"Seleccione…",null,"Seleccione…"]
[null,null,"Seleccione…",null,"Seleccione…"]
[null,null,"Seleccione…",null,"Seleccione…"]
[]
[2,"Gestión del Talento Humano","Seleccione…",null,"Seleccione…"]
[null,null,"Profesional",null,"Seleccione…"]
[null,null,"Profesional",null,"Seleccione…"]
[null,null,"Seleccione…",null,"Seleccione…"]
[null,null,"Seleccione…",null,"Seleccione…"]
[null,null,"Seleccione…",null,"Seleccione…"]
[null,null,"Seleccione…",null,"Seleccione…"]
[null,null,"Seleccione…",null,"Seleccione…"]
[]
[3,"Gestión en programas de salud","Seleccione…",null,"Seleccione…"]
[null,null,"Seleccione…",null,"Seleccione…"]
[null,null,"Seleccione…",null,"Seleccione…"]
[null,null,"Seleccione…",null,"Seleccione…"]
[null,null,"Seleccione…",null,"Seleccione…"]
[null,null,"Seleccione…",null,"Seleccione…"]
[null,null,"Seleccione…",null,"Seleccione…"]
[null,null,"Seleccione…",null,"Seleccione…"]
[]
[4,"Gestión en programas de vivienda","Seleccione…",null,"Seleccione…"]
[null,null,"Seleccione…",null,"Seleccione…"]
[null,null,"Seleccione…",null,"Seleccione…"]
[null,null,"Seleccione…",null,"Seleccione…"]
[null,null,"Seleccione…",null,"Seleccione…"]
[null,null,"Seleccione…",null,"Seleccione…"]
[null,null,"Seleccione…",null,"Seleccione…"]
[null,null,"Seleccione…",null,"Seleccione…"]
[]
[5,"Gestión en programas de educación","Seleccione…",null,"Seleccione…"]
[null,null,"Seleccione…",null,"Seleccione…"]
[null,null,"Seleccione…",null,"Seleccione…"]
[null,null,"Seleccione…",null,"Seleccione…"]
[null,null,"Seleccione…",null,"Seleccione…"]
[null,null,"Seleccione…",null,"Seleccione…"]
[null,null,"Seleccione…",null,"Seleccione…"]
[null,null,"Seleccione…",null,"Seleccione…"]
[]
[6,"Programa de agua potable y Saneamiento Básico","Seleccione…",null,"Seleccione…"]
[null,null,"Seleccione…",null,"Seleccione…"]
[null,null,"Seleccione…",null,"Seleccione…"]
[null,null,"Seleccione…",null,"Seleccione…"]
[null,null,"Seleccione…",null,"Seleccione…"]
[null,null,"Seleccione…",null,"Seleccione…"]
[null,null,"Seleccione…",null,"Seleccione…"]
[null,null,"Seleccione…",null,"Seleccione…"]
[]
[7,"Programas agropecuarios ","Seleccione…",null,"Seleccione…"]
[null,null,"Seleccione…",null,"Seleccione…"]
[null,null,"Seleccione…",null,"Seleccione…"]
[null,null,"Seleccione…",null,"Seleccione…"]
[null,null,"Seleccione…",null,"Seleccione…"]
[null,null,"Seleccione…",null,"Seleccione…"]
[null,null,"Seleccione…",null,"Seleccione…"]
[null,null,"Seleccione…",null,"Seleccione…"]
[]
[8,"Programas de Deporte y Recreación ","Seleccione…",null,"Seleccione…"]
[null,null,"Seleccione…",null,"Seleccione…"]
[null,null,"Seleccione…",null,"Seleccione…"]
[null,null,"Seleccione…",null,"Seleccione…"]
[null,null,"Seleccione…",null,"Seleccione…"]
[null,null,"Seleccione…",null,"Seleccione…"]
[null,null,"Seleccione…",null,"Seleccione…"]
[null,null,"Seleccione…",null,"Seleccione…"]
[]
[9,"Programas ambientales ","Seleccione…",null,"Seleccione…"]
[null,null,"Seleccione…",null,"Seleccione…"]
[null,null,"Seleccione…",null,"Seleccione…"]
[null,null,"Seleccione…",null,"Seleccione…"]
[null,null,"Seleccione…",null,"Seleccione…"]
[null,null,"Seleccione…",null,"Seleccione…"]
[null,null,"Seleccione…",null,"Seleccione…"]
[null,null,"Seleccione…",null,"Seleccione…"]
[]
[10,"Gestión Contractual","Seleccione…",null,"Seleccione…"]
[null,null,"Seleccione…",null,"Seleccione…"]
[null,null,"Seleccione…",null,"Seleccione…"]
[null,null,"Seleccione…",null,"Seleccione…"]
[null,null,"Seleccione…",null,"Seleccione…"]
[null,null,"Seleccione…",null,"Seleccione…"]
[null,null,"Seleccione…",null,"Seleccione…"]
[null,null,"Seleccione…",null,"Seleccione…"]
[]
[11,"Ejecución de Obras","Seleccione…",null,"Seleccione…"]
[null,null,"Seleccione…",null,"Seleccione…"]
[null,null,"Seleccione…",null,"Seleccione…"]
[null,null,"Seleccione…",null,"Seleccione…"]
[null,null,"Seleccione…",null,"Seleccione…"]
[null,null,"Seleccione…",null,"Seleccione…"]
[null,null,"Seleccione…",null,"Seleccione…"]
[null,null,"Seleccione…",null,"Seleccione…"]
[]
[12,"Gestión presupuestal (Contabilidad- presupuesto-Tesorería)","Seleccione…",null,"Seleccione…"]
[null,null,"Seleccione…",null,"Seleccione…"]
[null,null,"Seleccione…",null,"Seleccione…"]
[null,null,"Seleccione…",null,"Seleccione…"]
[null,null,"Seleccione…",null,"Seleccione…"]
[null,null,"Seleccione…",null,"Seleccione…"]
[null,null,"Seleccione…",null,"Seleccione…"]
[null,null,"Seleccione…",null,"Seleccione…"]
[]
[13,"Gestión Documental","Seleccione…",null,"Seleccione…"]
[null,null,"Seleccione…",null,"Seleccione…"]
[null,null,"Seleccione…",null,"Seleccione…"]
[null,null,"Seleccione…",null,"Seleccione…"]
[null,null,"Seleccione…",null,"Seleccione…"]
[null,null,"Seleccione…",null,"Seleccione…"]
[null,null,"Seleccione…",null,"Seleccione…"]
[null,null,"Seleccione…",null,"Seleccione…"]
[]
[14,"Atención al Ciudadano","Seleccione…",null,"Seleccione…"]
[null,null,"Seleccione…",null,"Seleccione…"]
[null,null,"Seleccione…",null,"Seleccione…"]
[null,null,"Seleccione…",null,"Seleccione…"]
[null,null,"Seleccione…",null,"Seleccione…"]
[null,null,"Seleccione…",null,"Seleccione…"]
[null,null,"Seleccione…",null,"Seleccione…"]
[null,null,"Seleccione…",null,"Seleccione…"]
[]
[15,"TIC (Sistemas)","Seleccione…",null,"Seleccione…"]
[null,null,"Seleccione…",null,"Seleccione…"]
[null,null,"Seleccione…",null,"Seleccione…"]
[null,null,"Seleccione…",null,"Seleccione…"]
[null,null,"Seleccione…",null,"Seleccione…"]
[null,null,"Seleccione…",null,"Seleccione…"]
[null,null,"Seleccione…",null,"Seleccione…"]
[null,null,"Seleccione…",null,"Seleccione…"]
[]
[16,"Auditoria Interna","Seleccione…",null,"Seleccione…"]
[null,null,"Seleccione…",null,"Seleccione…"]
[null,null,"Seleccione…",null,"Seleccione…"]
[null,null,"Seleccione…",null,"Seleccione…"]
[null,null,"Seleccione…",null,"Seleccione…"]
[null,null,"Seleccione…",null,"Seleccione…"]
[null,null,"Seleccione…",null,"Seleccione…"]
[null,null,"Seleccione…",null,"Seleccione…"]
[]
[17,"Gestión de recursos físicos","Seleccione…",null,"Seleccione…"]
[null,null,"Seleccione…",null,"Seleccione…"]
[null,null,"Seleccione…",null,"Seleccione…"]
[null,null,"Seleccione…",null,"Seleccione…"]
[null,null,"Seleccione…",null,"Seleccione…"]
[null,null,"Seleccione…",null,"Seleccione…"]
[null,null,"Seleccione…",null,"Seleccione…"]
[null,null,"Seleccione…",null,"Seleccione…"]
[]
[18,null,"Seleccione…",null,"Seleccione…"]
[null,null,"Seleccione…",null,"Seleccione…"]
[null,null,"Seleccione…",null,"Seleccione…"]
[null,null,"Seleccione…",null,"Seleccione…"]
[null,null,"Seleccione…",null,"Seleccione…"]
[null,null,"Seleccione…",null,"Seleccione…"]
[null,null,"Seleccione…",null,"Seleccione…"]
[null,null,"Seleccione…",null,"Seleccione…"]
[]
[19,null,"Seleccione…",null,"Seleccione…"]
[null,null,"Seleccione…",null,"Seleccione…"]
[null,null,"Seleccione…",null,"Seleccione…"]
[null,null,"Seleccione…",null,"Seleccione…"]
[null,null,"Seleccione…",null,"Seleccione…"]
[null,null,"Seleccione…",null,"Seleccione…"]
[null,null,"Seleccione…",null,"Seleccione…"]
[null,null,"Seleccione…",null,"Seleccione…"]
[]
[20,null,"Seleccione…",null,"Seleccione…"]
[null,null,"Seleccione…",null,"Seleccione…"]
[null,null,"Seleccione…",null,"Seleccione…"]
[null,null,"Seleccione…",null,"Seleccione…"]
[null,null,"Seleccione…",null,"Seleccione…"]
[null,null,"Seleccione…",null,"Seleccione…"]
[null,null,"Seleccione…",null,"Seleccione…"]
[null,null,"Seleccione…",null,"Seleccione…"]
[]
[21,null,"Seleccione…",null,"Seleccione…"]
[null,null,"Seleccione…",null,"Seleccione…"]
[null,null,"Seleccione…",null,"Seleccione…"]
[null,null,"Seleccione…",null,"Seleccione…"]
[null,null,"Seleccione…",null,"Seleccione…"]
[null,null,"Seleccione…",null,"Seleccione…"]
[null,null,"Seleccione…",null,"Seleccione…"]
[null,null,"Seleccione…",null,"Seleccione…"]
[]
[22,null,"Seleccione…",null,"Seleccione…"]
[null,null,"Seleccione…",null,"Seleccione…"]
[null,null,"Seleccione…",null,"Seleccione…"]
[null,null,"Seleccione…",null,"Seleccione…"]
[null,null,"Seleccione…",null,"Seleccione…"]
[null,null,"Seleccione…",null,"Seleccione…"]
[null,null,"Seleccione…",null,"Seleccione…"]
[null,null,"Seleccione…",null,"Seleccione…"]
[]
[23,null,"Seleccione…",null,"Seleccione…"]
[null,null,"Seleccione…",null,"Seleccione…"]
[null,null,"Seleccione…",null,"Seleccione…"]
[null,null,"Seleccione…",null,"Seleccione…"]
[null,null,"Seleccione…",null,"Seleccione…"]
[null,null,"Seleccione…",null,"Seleccione…"]
[null,null,"Seleccione…",null,"Seleccione…"]
[null,null,"Seleccione…",null,"Seleccione…"]
[]
[24,null,"Seleccione…",null,"Seleccione…"]
[null,null,"Seleccione…",null,"Seleccione…"]
[null,null,"Seleccione…",null,"Seleccione…"]
[null,null,"Seleccione…",null,"Seleccione…"]
[null,null,"Seleccione…",null,"Seleccione…"]
[null,null,"Seleccione…",null,"Seleccione…"]
[null,null,"Seleccione…",null,"Seleccione…"]
[null,null,"Seleccione…",null,"Seleccione…"]
[]
[25,null,"Seleccione…",null,"Seleccione…"]
[null,null,"Seleccione…",null,"Seleccione…"]
[null,null,"Seleccione…",null,"Seleccione…"]
[null,null,"Seleccione…",null,"Seleccione…"]
[null,null,"Seleccione…",null,"Seleccione…"]
[null,null,"Seleccione…",null,"Seleccione…"]
[null,null,"Seleccione…",null,"Seleccione…"]
[null,null,"Seleccione…",null,"Seleccione…"]
[]
[26,null,"Seleccione…",null,"Seleccione…"]
[null,null,"Seleccione…",null,"Seleccione…"]
[null,null,"Seleccione…",null,"Seleccione…"]
[null,null,"Seleccione…",null,"Seleccione…"]
[null,null,"Seleccione…",null,"Seleccione…"]
[null,null,"Seleccione…",null,"Seleccione…"]
[null,null,"Seleccione…",null,"Seleccione…"]
[null,null,"Seleccione…",null,"Seleccione…"]
[]
[27,null,"Seleccione…",null,"Seleccione…"]
[null,null,"Seleccione…",null,"Seleccione…"]
[null,null,"Seleccione…",null,"Seleccione…"]
[null,null,"Seleccione…",null,"Seleccione…"]
[null,null,"Seleccione…",null,"Seleccione…"]
[null,null,"Seleccione…",null,"Seleccione…"]
[null,null,"Seleccione…",null,"Seleccione…"]
[null,null,"Seleccione…",null,"Seleccione…"]
[]
[28,null,"Seleccione…",null,"Seleccione…"]
[null,null,"Seleccione…",null,"Seleccione…"]
[null,null,"Seleccione…",null,"Seleccione…"]
[null,null,"Seleccione…",null,"Seleccione…"]
[null,null,"Seleccione…",null,"Seleccione…"]
[null,null,"Seleccione…",null,"Seleccione…"]
[null,null,"Seleccione…",null,"Seleccione…"]
[null,null,"Seleccione…",null,"Seleccione…"]
[]
[29,null,"Seleccione…",null,"Seleccione…"]
[null,null,"Seleccione…",null,"Seleccione…"]
[null,null,"Seleccione…",null,"Seleccione…"]
[null,null,"Seleccione…",null,"Seleccione…"]
[null,null,"Seleccione…",null,"Seleccione…"]
[null,null,"Seleccione…",null,"Seleccione…"]
[null,null,"Seleccione…",null,"Seleccione…"]
[null,null,"Seleccione…",null,"Seleccione…"]

{"sheet":"Formulas","index":3,"n_rows":18,"n_cols":2,"rows_kept":18,"cut":false,"hidden":true,"merged":[]}
["Opciones","Cargos"]
["Seleccione…","Seleccione…"]
["P","Representante Legal"]
["A","Secretario"]
["E","Director / Jefe de Oficina"]
["V","Coordinador"]
["P-A","Asesor"]
["P-E","Profesional"]
["P-V","Técnico"]
["A-E","Otro"]
["A-V"]
["E-V","SELECCIONE X"]
["P-A-E","X"]
["P-E-V"]
["A-E-V"]
["P-A-V"]
["P-A-E-V"]
["No aplica"]

{"sheet":"Segunda línea","index":4,"n_rows":36,"n_cols":21,"rows_kept":36,"cut":false,"hidden":false,"merged":[[3,20,5,20],[4,16,5,16],[4,17,5,17],[0,1,1,2],[0,3,0,19],[1,3,1,19],[3,1,3,17],[3,18,5,18],[3,19,5,19],[4,6,4,8],[4,9,5,9],[4,10,5,10],[4,11,4,15],[4,1,5,1],[4,2,5,2],[4,3,5,3],[4,4,5,4],[4,5,5,5]]}
[null,null,null,"ESTRUCTURA SEGUNDA LÍNEA DE DEFENSA"]
[null,null,null,{"$f":"Diagnóstico_RR!C2","v":"INSTITUTO DISTRITAL DE TURISMO"}]
[]
[null,"SEGUNDA LÍNEA DE DEFENSA",null,null,null,null,null,null,null,null,null,null,null,null,null,null,null,null,"TERCERA LÍNEA DE DEFENSA\n(Oficina de Control Interno o quien haga sus veces) ","SEGUIMIENTO CONTROL INTERNO ","Seguimiento y actualización del mapa de aseguramiento vigencia 2022"]
[null,"No. ","ASPECTO CLAVE DE ÉXITO\n(Programa, Proyecto, Proceso, Sistema, entre otros)","Riesgo asociado al aspecto clave de éxito","Responsable","Area Funcional","Criterios para la identificación de la segunda línea de defensa",null,null,"Clasificación ","FUNCIONES DE\n ASEGURAMIENTO O ACTIVIDAD DE CONTROL QUE DEBE ADELANTAR\n2023","CRITERIOS EVALUADORES DE LA FUNCIÓN DE ASEGURAMIENTO",null,null,null,null,"NIVEL DE \nCONFIANZA","OBSERVACIÓN"]
[null,null,null,null,null,null,"¿Pertenece a la Media o Alta Gerencia?","¿Responde ante la Alta Dirección?","¿Realiza actividades de seguimiento?",null,null,"Objetivo y Alcance  de la función de aseguramiento\n(20%)","Metodología\n(30%)","Responsable\n(30%)","Comunicación de resultados \n(20%)","Total"]
[{"$f":"CONCATENATE(J7,B7)","v":"Segunda Línea de Defensa1"},1,"PROCESO DIRECCIONAMIENTO ESTRATÉGICO Y PLANEACIÓN\nCumplimiento de metas del Plan de Desarrollo Distrital","Afectación a la imagen institucional y sanciones por incumplimiento a las metas institucionales, debido a cambios en los planes, programas y proyectos establecidos en la planeación estratégica","Direccionamiento Estratégico y Planeación","Direccionamiento Estratégico y Planeación","X","X","X","Segunda Línea de Defensa","*Realizar el seguimiento a las metas institucionales para controlar la ejecución de los proyectos de inversión. Esta actividad se realizará de manera trimestral.\n",5,4,5,4,{"$f":"(L7*0.2)+(M7*0.3)+(N7*0.3)+(O7*0.2)","v":4.5},{"$f":"IF(P7<0.9,\" \",IF(P7<3,\"Bajo Aseguramiento\",IF(P7<4,\"Medio Aseguramiento\",\"Alto Aseguramiento\")))","v":"Alto Aseguramiento"},{"$f":"VLOOKUP(Q7,Hoja2!$I$3:$O$8,2,0)","v":"La Oficina de Control Interno o quien haga sus veces confiará en los resultados del aseguramiento de la 2ª línea y basado en sus informes, auditará la efectividad de dicha función, evitando evaluar los controles de la 1ª línea."},{"$f":"IFERROR(VLOOKUP(Q7,Hoja2!$I$9:$O$13,2,0),\" \")","v":" "},"15/09/2021. Seguimiento realizado por Luisa Duarte y Diana Amaya conforme a las evidencias remitidas por el proceso de Direccionamiento Estratégico. \n\nAl verificar las gestiones adelantadas por el proceso, se observa que no se ha llevado a cabo la elaboración del Tablero de control para establecer alertas frente a los resultados del seguimiento a la Planeación Estratégica, para la oportuna toma de decisiones, lo anterior teniendo en cuenta que el aplicativo se encuentra en etapa de ajustes e implementación para lo cual  se cuenta con la información en un repositorio de datos en google sheets, y consecuentemente a la fecha se vienen generando los informes semanales y mensuales de seguimiento al presupuesto y a las metas del PDD, pero aún no se cuenta con el 100% de la herramienta desarrollada. \n\nAsí las cosas, el proceso solicita que esta actividad sea reprogramada al 30 de octubre de 2021. \n\nReprogramar 30/10/2021. ","*Se consolida  dentro de las funciones de aseguramiento la Resolución No. 221 de 2021 \"Por la cual se establecen las mesas de seguimiento a los Proyectos de Inversión en el Instituto Distrital de Turismo\".\n\n* Se incorporan dos actividades dentro de las funciones de aseguramiento referentes a:\n\n*Hacer seguimiento, control y vigilancia a la ejecución de los Proyectos de Inversión a través de mesas de trabajo mensual con los Gerentes de Proyecto, para identificar obstáculos que impidan el cumplimiento de las metas y la ejecución presupuestal, esto para la generación de alertas y toma oportuna de decisiones. (Evidencia actas de reunión mensual a partir del mes febrero 2022).\n\n*Realizar mesas de trabajo al interior del grupo de trabajo de FONDETUR para realizar control y vigilancia a la ejecución de las convocatorias, con el fin de garantizar una correcta ejecución de cada una de ellas, según la fase de planeación. (Evidencia actas de reunión cuando se ameriten).\n"]
["Segunda Línea de Defensa2",2,"PROCESO DIRECCIONAMIENTO ESTRATÉGICO Y PLANEACIÓN\nEficiencia y eficacia en la ejecución del presupuesto asignado a nivel de giros.","Afectación a la imagen institucional y sanciones por incumplimiento a las metas institucionales, debido a cambios en los planes, programas y proyectos establecidos en la planeación estratégica","Direccionamiento Estratégico y Planeación","Direccionamiento Estratégico y Planeación","X","X","X","Segunda Línea de Defensa","*Realizar el seguimiento a la ejecución del presupuesto a nivel de giros, para dar cumplimiento a las metas de cada proyecto. Esta actividad se realizará de manera trimestral.",5,4,5,4,4.5,"Alto Aseguramiento",{"$f":"VLOOKUP(Q8,Hoja2!$I$3:$O$8,2,0)","v":"La Oficina de Control Interno o quien haga sus veces confiará en los resultados del aseguramiento de la 2ª línea y basado en sus informes, auditará la efectividad de dicha función, evitando evaluar los controles de la 1ª línea."},{"$f":"IFERROR(VLOOKUP(Q8,Hoja2!$I$9:$O$13,2,0),\" \")","v":" "},"15/09/2021. Seguimiento realizado por Luisa Duarte y Diana Amaya conforme a las evidencias remitidas por el proceso de Direccionamiento Estratégico. \n\nAl verificar las gestiones adelantadas por el proceso, se observa que no se ha llevado a cabo la elaboración del Tablero de control para evidenciar el nivel de ejecución de giros frente al nivel de ejecución de metas y establecer la oportuna toma de decisiones, lo anterior teniendo en cuenta que el aplicativo se encuentra en etapa de ajustes e implementación para lo cual  se cuenta con la información en un repositorio de datos en google sheets, y consecuentemente a la fecha se vienen generando los informes semanales y mensuales de seguimiento al presupuesto y a las metas del PDD, pero aún no se cuenta con el 100% de la herramienta desarrollada. \n\nAsí las cosas, el proceso solicita que esta actividad sea reprogramada al 30 de octubre de 2021. \n\nReprogramar 30/10/2021. ","* Se consolida  dentro de las funciones de aseguramiento el Tablero de Control para evidenciar el nivel de ejecución de giros frente al nivel de ejecución de metas y establecer la oportuna toma de decisiones.\n\n*Se incorporan dos actividades dentro de las funciones de aseguramiento referentes a: \n\n*Hacer seguimiento, control y vigilancia a la ejecución de los proyectos de inversión a través de mesas de trabajo mensual con los Gerentes de Proyecto, para identificar obstáculos que impidan el cumplimiento de las metas y la ejecución presupuestal, esto para la generación de alertas y toma oportuna de decisiones. (Evidencia Actas de Reunión mensual a partir del mes febrero 2022).\n"]
["Segunda Línea de Defensa3",3,"PROCESO DIRECCIONAMIENTO ESTRATÉGICO Y PLANEACIÓN\nSeguimiento a Indicadores de Gestión","Afectación a la imagen institucional y sanciones por incumplimiento a las metas institucionales, debido a cambios en los planes, programas y proyectos establecidos en la planeación estratégica","Direccionamiento Estratégico y Planeación","Direccionamiento Estratégico y Planeación","X","X","X","Segunda Línea de Defensa","*Realizar el seguimiento a los indicadores de gestión para evitar el establecer alertas de los resultados de cada proceso. Esta actividad se realizará de manera trimestral.",5,4,5,5,4.7,"Alto Aseguramiento",{"$f":"VLOOKUP(Q9,Hoja2!$I$3:$O$8,2,0)","v":"La Oficina de Control Interno o quien haga sus veces confiará en los resultados del aseguramiento de la 2ª línea y basado en sus informes, auditará la efectividad de dicha función, evitando evaluar los controles de la 1ª línea."},{"$f":"IFERROR(VLOOKUP(Q9,Hoja2!$I$9:$O$13,2,0),\" \")","v":" "},"15/09/2021. Seguimiento realizado por Luisa Duarte y Diana Amaya conforme a las evidencias remitidas por el proceso de Direccionamiento Estratégico. \nPara este periodo evaluado se tenían programados llevar a cabo 2 actividades, así las cosas se evidencia lo siguiente:  \n1). \"Tablero de control para establecer alertas frente a los resultados del seguimiento a la Planeación Estratégica, para la oportuna toma de decisiones\": no se ha llevado a cabo la elaboración del Tablero de control, toda vez que el mismo se  encuentra en etapa de ajustes e implementación para lo cual  se cuenta con la información en un repositorio de datos en google sheets, y consecuentemente a la fecha se vienen generando los informes semanales y mensuales de seguimiento al presupuesto y a las metas del PDD, pero aún no se cuenta con el 100% de la herramienta desarrollada.\n2). \"Presentar ante el Comité de Gestión y Desempeño el resultado de los indicadores por proceso\": esta actividad esta programada para presentarse  en la revisión por la Dirección programada para el día 21 de septiembre de la vigencia.\n\nTeniendo en cuenta lo anterior, las acciones deberán reprogramarse hasta tanto se de cumplimiento integral de las mismas. ","Se consolidan dos actividades de función de aseguramiento contempladas en la vigencia 2021, las cuales corresponden a: \n\n*Tablero de Control para establecer alertas frente a los resultados del seguimiento a la Planeación Estratégica, para la oportuna toma de decisiones.\n* Presentar ante el Comité de Gestión y Desempeño el resultado de los indicadores por proceso.\n\nDe acuerdo a la consolidación de la última  función de aseguramiento el aspecto clave se fortalece en cuanto al criterio de comunicación de resultados, pasando  de  2 a 5 en su calificación, arrojando un nivel de confianza ALTO.\n\n* Para éste aspecto clave de Éxito, no se incorporaron nuevas funciones  de aseguramiento.\n"]
["Segunda Línea de Defensa4",4,"PROCESO DIRECCIONAMIENTO ESTRATÉGICO Y PLANEACIÓN\nSeguimiento a las actividades del plan de acción de MIPG.","Afectación a la imagen institucional y sanciones por incumplimiento a las metas institucionales, debido a cambios en los planes, programas y proyectos establecidos en la planeación estratégica","Direccionamiento Estratégico y Planeación","Direccionamiento Estratégico y Planeación","X","X","X","Segunda Línea de Defensa","*Realizar el seguimiento a las actividades del plan de acción de MIPG, para dar cumplimiento al reporte del FURAG. Esta actividad se realizará de manera trimestral.",5,4,5,3,4.3000000000000007,"Alto Aseguramiento",{"$f":"VLOOKUP(Q10,Hoja2!$I$3:$O$8,2,0)","v":"La Oficina de Control Interno o quien haga sus veces confiará en los resultados del aseguramiento de la 2ª línea y basado en sus informes, auditará la efectividad de dicha función, evitando evaluar los controles de la 1ª línea."},{"$f":"IFERROR(VLOOKUP(Q10,Hoja2!$I$9:$O$13,2,0),\" \")","v":" "},"15/09/2021. Seguimiento realizado por Luisa Duarte y Diana Amaya conforme a las evidencias remitidas por el proceso de Direccionamiento Estratégico. \n\nAl verificar las gestiones adelantadas por el proceso, se observa que no se ha llevado a cabo la elaboración del Tablero de control para establecer alertas frente a los resultados del seguimiento a la Planeación Estratégica, para la oportuna toma de decisiones, lo anterior teniendo en cuenta que el aplicativo se encuentra en etapa de ajustes e implementación para lo cual  se cuenta con la información en un repositorio de datos en google sheets, y consecuentemente a la fecha se vienen generando los informes semanales y mensuales de seguimiento al presupuesto y a las metas del PDD, pero aún no se cuenta con el 100% de la herramienta desarrollada. \n\nAsí las cosas, el proceso solicita que esta actividad sea reprogramada al 30 de octubre de 2021. \n\nReprogramar 30/10/2021. ","* Se consolida  dentro de las funciones de aseguramiento el Tablero de Control para evidenciar el nivel de ejecución de giros frente al nivel de ejecución de metas y establecer la oportuna toma de decisiones.\n\nSe incorpora una actividad dentro de las funciones de aseguramiento referente a: \n\nInclusión de actividades en el Plan de Acción de MIPG 2022 para atender las recomendaciones dadas por la evaluación de FURAG 2021. (Evidencia seguimiento mensual al Plan de Acción de MIPG 2022).\n"]
["Segunda Línea de Defensa5",5,"PROCESO CONTROL DISCIPLINARIO  INTERNO:\nRespuesta oportuna a las denuncias o quejas disciplinarias.","Expedición de decisiones por fuera del término establecido en la ley.","Control Disciplinario Interno","Control Disciplinario Interno","X","X","X","Segunda Línea de Defensa","1. Aplicar los procedimientos actualizados del proceso de conformidad con lo establecido en el nuevo código general disciplinario (Ley 1952 de 2019 modificada por la ley 2094 de 2021)\n2. Realizar seguimiento a los expedientes vigentes y a las decisiones proferidas\n3. Efectuar controles a las etapas procesales.                                                                                   4.  Actualizar los formatos existentes ",5,4,5,2,4.1000000000000005,"Alto Aseguramiento",{"$f":"VLOOKUP(Q11,Hoja2!$I$3:$O$8,2,0)","v":"La Oficina de Control Interno o quien haga sus veces confiará en los resultados del aseguramiento de la 2ª línea y basado en sus informes, auditará la efectividad de dicha función, evitando evaluar los controles de la 1ª línea."},{"$f":"IFERROR(VLOOKUP(Q11,Hoja2!$I$9:$O$13,2,0),\" \")","v":" "},"16/09/2021. Seguimiento realizado por Luisa Duarte y Diana Amaya conforme a las evidencias remitidas por el proceso de Control Interno Disciplinario. \n\nAl revisar las gestiones adelantadas por el proceso, se observa que  el 30 de julio de 2021 se llevo a cabo la Socialización a los diferentes criterios o lineamientos que caracterizan un requerimiento asociado al proceso de CID a los profesionales encargados de recibir las PQRSD por los diferentes canales de comunicación.\n\nAsí las cosas, la actividad se considera cumplida. ","* Se modificó el nombre del  proceso de \"Control Interno Disciplinario\" a \"Control Disciplinario Interno\" de acuerdo a la última actualización del Mapa de Procesos\n* Se modificó el nombre del área funcional de \"Subdirección de Gestión Corporativa\" a \"Oficina de Control Disciplinario Interno\"  de acuerdo a la última actualización orgánica del IDT. \n* Se actualiza y se define la función de aseguramiento referente a \"Socializar los diferentes criterios o lineamientos que caracterizan un requerimiento asociado al proceso de CID a los profesionales encargados de recibir las PQRSD por los diferentes canales de comunicación\". Fecha 31 de marzo 2022.  \n\n* Se mantienen los criterios evaluadores de la función de Aseguramiento para la vigencia 2022.\n"]
["Segunda Línea de Defensa6",6,"PROCESO GESTION DOCUMENTAL: \n\nParametrización y puesta en marcha  del Sistema de Gestión de Documentos Electrónicos de Archivo SGDEA (Sistema Integrado de Gestión de Archivo - SIGA).\n","Fallas en el manejo adecuado de la información, conservación y preservación documental","Subdirección de Gestión Corporativa","Subdirección de Gestión Corporativa","X","X","X","Segunda Línea de Defensa","\n*Realizar capacitación sobre el manejo de los documentos electrónicos, la conservación y preservación.\n*Efectuar estrategia de sensibilización para el manejo de los documentos electrónicos, la conservación y preservación.\n* Realizar mesas de trabajo con los gestores documentales de cada dependencia, de las cuales deberán quedar actas con compromisos y acuerdos.",4,4,5,3,4.0999999999999996,"Alto Aseguramiento",{"$f":"VLOOKUP(Q12,Hoja2!$I$3:$O$8,2,0)","v":"La Oficina de Control Interno o quien haga sus veces confiará en los resultados del aseguramiento de la 2ª línea y basado en sus informes, auditará la efectividad de dicha función, evitando evaluar los controles de la 1ª línea."},{"$f":"IFERROR(VLOOKUP(Q12,Hoja2!$I$9:$O$13,2,0),\" \")","v":" "},"16/09/2021. Seguimiento realizado por Luisa Duarte y Diana Amaya conforme a las evidencias remitidas por el proceso de Gestión Documental. \n\nPara el periodo evaluado se tenían programados llevar a cabo 2 actividades, así las cosas se evidencia lo siguiente:  \n1). \" Definir con la OAP la ubicación de almacenamiento (medio magnético) de información digitalizada\": para lo cual se cuenta con almacenamiento en servidor (NETSERVER) el cual tiene limitante de capacidad. \n2). \"Concretar con la OAP y el proceso de Bienes y Servicios la disponibilidad de los escáner que se requieren para el adelantamiento de la digitalización documental, teniendo en cuenta que el formato de almacenamiento de esta digitalización será pdf y que tenga reconocimiento de caracteres\": Cada área cuenta con scanner o impresora multifuncional, excepto el área de observatorio. Todos los dispositivos crean pdfestándar que permite el reconocimiento de caracteres.\n\nTeniendo en cuenta lo anterior, las actividades se consideran cumplidas. ","Se incorporó la función de aseguramiento  referente a: \"Elaborar los inventarios de eliminación documental de acuerdo a los tiempos de retención y disposición final según la TRD\". Fecha 30 Agosto  2022.\nLa calificación de la metodología pasó de 3 a 4, teniendo en cuenta que se actualizó el procedimiento de digitalización documental en la vigencia 2021,  por lo tanto, para éste aspecto clave, el nivel de confianza aumentó de MEDIO a ALTO.\n"]
["Segunda Línea de Defensa7",7,"PROCESO COMUNICACIONES:\nPublicar oportunamente la información en la página web institucional de acuerdo a la Política de Gobierno Digital.","Incumplimiento en las actividades descritas en el Plan Estratégico de Comunicaciones","Oficina Asesora de comunicaciones\n\nLíderes de proceso\n\nDireccionamiento Estratégico y Planeación","Oficina Asesora de Comunicaciones\n\nLíderes de Proceso\n\nDireccionamiento Estratégico y Planeación\n","X","X","X","Segunda Línea de Defensa","                                                                                                                                                    Realizar mesas de seguimiento y validación de cumplimento de la normativa vigente de la Política de Gobierno Digital. (Periodicidad: trimestral)\n\nResponsable: Subdirección de Planeación apoya \n\n \n\nPublicación en el portal web de manera oportuna de la información suministrada por las diferentes dependencias. (Periodicidad: Permanente)\n\nResponsable: Oficina Asesora de Comunicaciones.",5,5,5,5,5,"Alto Aseguramiento",{"$f":"VLOOKUP(Q13,Hoja2!$I$3:$O$8,2,0)","v":"La Oficina de Control Interno o quien haga sus veces confiará en los resultados del aseguramiento de la 2ª línea y basado en sus informes, auditará la efectividad de dicha función, evitando evaluar los controles de la 1ª línea."},{"$f":"IFERROR(VLOOKUP(Q13,Hoja2!$I$9:$O$13,2,0),\" \")","v":" "},"16/09/2021. Seguimiento realizado por Luisa Duarte y Diana Amaya conforme a las evidencias remitidas por la asesoría de Comunicaciones. \n\nPara el periodo evaluado se tenían programados llevar a cabo 2 actividades, así las cosas se evidencia lo siguiente:  \n1). \"Elaborar la matriz de transparencia frente a la Resolución de Mintic (Gobierno Digital que incluye la Ley 2080 de 2021, Ley 2052 de 2020, las Resoluciones 2893 de 2020 y 1519 de 2020)\": Se llevo a cabo la elaboración de la matriz de transparencia frente a la resolución de mintic, así mismo se llevo a cabo la actualización en la página web. \n2). \"*Hacer seguimiento a partir de una lista de chequeo de cumplimiento de la normativa legal de la política de gobierno digital\":Se observa que el seguimiento se realiza en matriz- transparencia IDT, la cual cuenta con los siguientes campos:  Información de la entidad, link de información actual, comentarios  y área responsable. \n\nTeniendo en cuenta lo anterior, las actividades se consideran cumplidas. ","Se modifica la descripción del  aspecto clave de éxito,  pasando de “Lineamientos normativos actualizados e implementados en la página web institucional de acuerdo a la Política de Gobierno Digital “a \"Publicar oportunamente la información en la página web institucional de acuerdo a la Política de Gobierno Digital\" \n* Se elimina la función de aseguramiento referente a : “Elaborar la matriz de transparencia frente a la Resolución de Mintic (Gobierno Digital que incluye la Ley 2080 de 2021, Ley 2052 de 2020, las Resoluciones 2893 de 2020 y 1519 de 2020).\n* Para la presente vigencia, se consolida la función de aseguramiento referente a: “Hacer seguimiento a partir de una lista de chequeo de cumplimiento de la normativa legal de la política de gobierno digital”.\n* Se incorpora una nueva función de aseguramiento referente a: *Hacer seguimiento a partir de mesas de trabajo con OAP para la publicación oportuna de la información según la normativa vigente de la Política de Gobierno Digital.   \nPeriodicidad: bimensual.\n* Los criterios  evaluadores se mantienen en la misma calificación, por consiguiente su nivel de confianza continua siendo ALTO.\n"]
["Segunda Línea de Defensa8",8,"PROCESO COMUNICACIONES:\nAsegurar la divulgación de los aspectos que se definen en la Matriz de Comunicaciones  Sistema Integrado de Gestión - SIG\" \n","Incumplimiento en las actividades descritas en el Plan Estratégico de Comunicaciones","Oficina Asesora de comunicaciones      \n Direccionamiento Estratégico y Planeación\nSub de Gestión Corporativa","Oficina Asesora de Comunicaciones ","X","X","X","Segunda Línea de Defensa","Hacer revisión de la matriz SIG a comienzo de vigencia por si deben realizarse actualizaciones al documento. (Inicio de vigencia de año)\n\nResponsable: Subdirección de Planeación. Subdirección Gestión Corporativa y Oficina Asesora de Comunicaciones.\n\n \n\nRealizar seguimiento a las actividades descritas en la matriz SIG\n\nResponsable: Oficina Asesora de Comunicaciones.",5,5,5,5,5,"Alto Aseguramiento",{"$f":"VLOOKUP(Q14,Hoja2!$I$3:$O$8,2,0)","v":"La Oficina de Control Interno o quien haga sus veces confiará en los resultados del aseguramiento de la 2ª línea y basado en sus informes, auditará la efectividad de dicha función, evitando evaluar los controles de la 1ª línea."},{"$f":"IFERROR(VLOOKUP(Q14,Hoja2!$I$9:$O$13,2,0),\" \")","v":" "},"14/09/2021. Seguimiento realizado por Luisa Duarte y Diana Amaya conforme a las evidencias remitidas por la asesoría de Comunicaciones. \n\nSe observa que durante los meses de abril, mayo, junio, julio se han realizado mesas de trabajo, llevando a cabo el seguimiento al cumplimiento de actividades descritas en la matriz de comunicaciones. \n\nTeniendo en cuenta lo anterior, la actividad se considera cumplida.  ","Se modifica la descripción del  aspecto clave de éxito pasando de \"Asegurar el cumplimiento de la divulgación de la política de calidad\"  a  \"Asegurar la divulgación de los aspectos que se definen en la Matriz de Comunicaciones  Sistema Integrado de Gestión - SIG\". \n\n* Se incorpora una nueva función de aseguramiento referente a: \"Hacer el seguimiento al cumplimiento a las actividades descritas en la matriz de SIG de comunicaciones\"\nPeriodicidad: mensual (permanente).\n\n* Los criterios  evaluadores se mantienen en la misma calificación por consiguiente su nivel de confianza continua siendo ALTO.\n"]
["Segunda Línea de Defensa9",9,"PROCESO GESTIÓN DE BIENES Y SERVICIOS:\nIdentificar los tiempos de vigencia de las licencias (software) de los equipos de cómputo del IDT.","No realizar la entrada en forma oportuna de adquisición de elementos.","Subdirección de Gestión Corporativa\n\nDireccionamiento Estratégico y Planeación","Subdirección de Gestión Corporativa\n\n","X","X","X","Segunda Línea de Defensa","\n* Realizar el recalculo de vida útil de las licencias (software) para la baja o retiro definitivo de las obsoletas y ampliación de las que aún son servibles a la entidad. (mínimo una vez al año, diciembre de cada año)\n",5,5,5,5,{"$f":"(L15*0.2)+(M15*0.3)+(N15*0.3)+(O15*0.2)","v":5},"Alto Aseguramiento",{"$f":"VLOOKUP(Q15,Hoja2!$I$3:$O$8,2,0)","v":"La Oficina de Control Interno o quien haga sus veces confiará en los resultados del aseguramiento de la 2ª línea y basado en sus informes, auditará la efectividad de dicha función, evitando evaluar los controles de la 1ª línea."},{"$f":"IFERROR(VLOOKUP(Q15,Hoja2!$I$9:$O$13,2,0),\" \")","v":" "},"15/09/2021. Seguimiento realizado por Luisa Duarte y Diana Amaya conforme a las evidencias remitidas por el proceso de Bienes y Servicios. \n\nPara el periodo evaluado se tenían programados llevar a cabo 2 actividades, así las cosas se evidencia lo siguiente:  \n\n1).\"Actualizar el Procedimiento GB-P03 Administración de Bienes, incluyendo lineamientos sobre la administración de los bienes intangibles (software)\": el 30 de agosto de 2021 Se llevo a cabo la actualización del procedimiento GB-P03 Administración de Bienes, versión 5, en este se incluyeron lineamientos sobre la administración de los bienes intangibles. \n2). \"Inventario actualizado de la totalidad de los equipos de computo con que cuenta el IDT y que requieren software, con el acompañamiento de la Oficina Asesora de Planeación y Sistemas, estableciendo la caducidad de cada licencia y a qué equipo pertenece\": Se evidencia por medio de matriz de Excel la actualización del inventario de la totalidad de los equipos de computo, esta matriz cuenta con los siguientes campos: Tipo, marca y modelo, placa de la torre, procesador, generación de los procesadores, memoria, disco duro, sistema operativo, versión del office, nombre del equipo, responsable, área y las bajas a octubre de 2020 y agosto de  2021. \n\nTeniendo en cuenta lo anterior, las actividades se consideran cumplidas. ","Se actualizó el nombre del Comité de Gestión de Bienes por el de Comité de Gestión y Desempeño Institucional. \n\n* Se incorporaron  dos funciones de aseguramiento referentes a:\nRevisar y si es del caso actualizar el Procedimiento GB-P03 Administración de Bienes, incluyendo lineamientos sobre la administración de los bienes intangibles (software). \n\n* Recalculo de vida útil de las licencias (software) para la baja o retiro definitivo de las obsoletas y ampliación de las que aún son servibles a la entidad. (Mínimo una vez al año)\n\n* Los criterios  evaluadores se mantienen en la misma calificación por consiguiente su nivel de confianza continúa siendo ALTO.\n"]
["Segunda Línea de Defensa10",10,"PROCESO GESTIÓN DEL TALENTO HUMANO: \nLineamiento para teletrabajo y trabajo en casa.","Incumplimiento de los requisitos del Sistema de Gestión de Seguridad y Salud en el Trabajo.","Subdirección de Gestión Corporativa","Subdirección de Gestión Corporativa","X","X","X","Segunda Línea de Defensa","* Repotar el informe de inspección de puesto de trabajo - modalidad de Teletrabajo. (Esta actividad se desarrollará cada vez que el trabajador se postule y sea aceptada la postulación en la modalidad )\n*Instructivo para trabajo en casa.\n\n",5,5,5,5,5,"Alto Aseguramiento",{"$f":"VLOOKUP(Q16,Hoja2!$I$3:$O$8,2,0)","v":"La Oficina de Control Interno o quien haga sus veces confiará en los resultados del aseguramiento de la 2ª línea y basado en sus informes, auditará la efectividad de dicha función, evitando evaluar los controles de la 1ª línea."},{"$f":"IFERROR(VLOOKUP(Q16,Hoja2!$I$9:$O$13,2,0),\" \")","v":" "},"15/09/2021. Seguimiento realizado por Luisa Duarte y Diana Amaya conforme a las evidencias remitidas por el proceso de Talento Humano. \n\nSe observa que el 05 de agosto de 2021, se llevo a cabo la elaboración del  \"TH-I12 Instructivo para el trabajo en casa\"  V1 el cual tiene como objetivo: \nBrindar las orientaciones básicas que permitan a los funcionarios del IDT desarrollar adecuadamente sus actividades laborales desde el trabajo en casa y hacer uso adecuado de las herramientas con las que cuenta la entidad. Este  documento aplica para todos los funcionarios que están realizando sus actividades desde el trabajo en casa y el Teletrabajo permitiendo que los servidores estén conectados para dar continuidad con su trabajo, particularmente durante el distanciamiento social derivado del Covid-19.\n\nTeniendo en cuenta lo anterior, la actividad se considera cumplida.","Se consolidan las funciones de aseguramiento que se tenían definidas para la vigencia 2021.\n\nLos criterios evaluadores de la función de aseguramiento se mantienen en la misma calificación para las 5 categorías.\n\nPara este Aspecto clave de Éxito, no se incorporaron nuevas funciones  de aseguramiento.\n"]
["Segunda Línea de Defensa11",11,"PROCESO GESTIÓN DEL TALENTO HUMANO: \nGestionar de manera oportuna y eficiente el pago de nómina y prestaciones\nsociales ","NA","Subdirección de Gestión Corporativa","Subdirección de Gestión Corporativa","X","X","X","Segunda Línea de Defensa"," \n\n* Realizar el  seguimiento por medio del cuadro de validación de nómina mensualmente. ",5,4,5,4,4.5,"Alto Aseguramiento",{"$f":"VLOOKUP(Q17,Hoja2!$I$3:$O$8,2,0)","v":"La Oficina de Control Interno o quien haga sus veces confiará en los resultados del aseguramiento de la 2ª línea y basado en sus informes, auditará la efectividad de dicha función, evitando evaluar los controles de la 1ª línea."},{"$f":"IFERROR(VLOOKUP(Q17,Hoja2!$I$9:$O$13,2,0),\" \")","v":" "},null,"Se incluye éste  nuevo aspecto clave.\nSe definen las funciones  de aseguramiento ya existentes en el proceso.\nSe incorpora la actividad de: Elaborar una herramienta de seguimiento para la gestión de nómina. \nCumplimiento  30 de abril del 2022.\n"]
["Segunda Línea de Defensa12",12,"PROCESO GESTIÓN DE DESARROLLO Y COMPETITIVIDAD \nTrazabilidad de la documentación que soporta el cumplimiento de metas e indicadores","Pérdida en la trazabilidad de la documentación soporte asociada al cumplimiento de las metas e indicadores a cargo de la Subdirección de Desarrollo y Competitividad.","Gestión de Desarrollo y Competitividad","Gestión de Desarrollo y Competitividad","X","X","X","Segunda Línea de Defensa","*Consolidar las evidencias asociadas al reporte de cumplimiento de las actividades que contribuyen al avance de metas e indicadores de la Subdirección de Gestión de Desarrollo y Cpmpetitividad, a través de una carpeta Drive; revisando que las evidencias estén completas y sean pertinentes frente a los reportes efectuados.\n\n*Instructivo GD-I08. Instructivo para el Manejo de Documentos Generados durante la Emergencia Sanitaria COVID 19.\n\nVerificar mensualmente que las evidencias asociadas al reporte de cumplimiento de las actividades que contribuyen al avance de metas e indicadores, estén completas y sean pertinentes frente a los reportes efectuados. Enviar correo electrónico de confirmación respecto a la verificación de las evidencias.\n",5,3,5,3,4,"Alto Aseguramiento",{"$f":"VLOOKUP(Q18,Hoja2!$I$3:$O$8,2,0)","v":"La Oficina de Control Interno o quien haga sus veces confiará en los resultados del aseguramiento de la 2ª línea y basado en sus informes, auditará la efectividad de dicha función, evitando evaluar los controles de la 1ª línea."},{"$f":"IFERROR(VLOOKUP(Q18,Hoja2!$I$9:$O$13,2,0),\" \")","v":" "},"15/09/2021. Seguimiento realizado por Luisa Duarte y Diana Amaya conforme a las evidencias remitidas por el proceso de Gestión de Destino competitivo y sostenible. \n\nSe lleva a cabo la Verificación mensualmente de las evidencias asociadas al reporte de cumplimiento de las actividades que contribuyen al avance de metas e indicadores, en donde se verifica que estas  estén completas y sean pertinentes frente a los reportes efectuados. \nAdicionalmente se remite correo  electrónico de confirmación respecto a la verificación de las evidencias.\n\nTeniendo en cuenta lo anterior, la actividad se considera cumplida. ","La actividad  relacionada con \"Verificar mensualmente que las evidencias asociadas al reporte de cumplimiento de las actividades que contribuyen al avance de metas e indicadores, estén completas y sean pertinentes frente a los reportes efectuados. Enviar correo electrónico de confirmación respecto a la verificación de las evidencias\" que estaba definida para la vigencia 2021, se consolida para la vigencia 2022 en el Mapa de Aseguramiento  y también hace parte   de una acción de tratamiento dentro del Mapa de Riesgos\n\nTeniendo en cuenta que para el mes de enero del 2022,  no se comunicaron los resultados de la actividad anterior, debido a la ausencia de personal,  el criterio de comunicación de resultados pasa de 4 a 3 en su calificación, no obstante su nivel de confianza continua siendo ALTO.\n\nPara este Aspecto clave de Éxito, no se incorporaron nuevas funciones  de aseguramiento,\n"]
["Segunda Línea de Defensa13",13,"PROCESO GESTIÓN DE DESARROLLO Y COMPETITIVIDAD \nCumplimiento del Plan Anual de Adquisiciones","Incumplimiento del Plan Anual de Adquisiciones","Subdirección de Desarrollo y Competitividad","Subdirección Desarrollo y Competitividad","X","X","X","Segunda Línea de Defensa","*Elaborar y remitir a través de correo electrónico a los Líderes de Equipo de la Subdirección de Gestión de Desarrollo y Competitividad, un informe del estado de programación y seguimiento al cumplimiento del Plan Anual de Adquisiciones, generando las alertas necesarias para el establecimiento de acciones pertinentes para lograr un óptimo nivel de compromisos y giros.\n\n*DE-P02 Procedimiento para la aprobación y seguimiento al Plan Anual de Adquisiciones (PAA).\nRealizar una reunión bimestral con los Líderes de Equipo de la Subdirección de Desarrollo y Competitividad, para socializar el informe del estado de programación y seguimiento al cumplimiento del Plan Anual de Adquisiciones, generando las alertas necesarias para el establecimiento de acciones pertinentes para lograr un óptimo nivel de compromisos y giros.\n",4,3,5,5,4.2,"Alto Aseguramiento",{"$f":"VLOOKUP(Q19,Hoja2!$I$3:$O$8,2,0)","v":"La Oficina de Control Interno o quien haga sus veces confiará en los resultados del aseguramiento de la 2ª línea y basado en sus informes, auditará la efectividad de dicha función, evitando evaluar los controles de la 1ª línea."},{"$f":"IFERROR(VLOOKUP(Q19,Hoja2!$I$9:$O$13,2,0),\" \")","v":" "},"15/09/2021. Seguimiento realizado por Luisa Duarte y Diana Amaya conforme a las evidencias remitidas por el proceso de Gestión de Destino competitivo y sostenible. \n\nSe observa que se llevo a cabo la realización de 2 informes de seguimiento de ejecución presupuestal y Metas Plan de Desarrollo, estos fueron socializados así:  el primero el 18 de mayo de 2021 en una reunión con los líderes de equipo y el otro el 31 de agosto  por medio de correo electrónico,  generando las alertas necesarias para el establecimiento de acciones pertinentes para lograr un óptimo nivel de compromisos y giros.\n\nTeniendo en cuenta lo anterior, la actividad se considera cumplida. ","La actividad relacionada con \"Realizar una reunión bimestral con los Líderes de Equipo de la Subdirección de Gestión de Destino, para socializar el informe del estado de programación y seguimiento al cumplimiento del Plan Anual de Adquisiciones, generando las alertas necesarias para el establecimiento de acciones pertinentes para lograr un óptimo nivel de compromisos y giros.\" que estaba definida para la vigencia 2021, se consolida para la vigencia 2022 en el Mapa de Aseguramiento.\n\nDe acuerdo a la consolidación de la anterior función de aseguramiento, el aspecto clave se fortalece en cuanto al criterio de comunicación de resultados pasando  de  4 a 5 en su calificación arrojando un nivel de confianza ALTO.\n\nPara éste Aspecto clave de Éxito, no se incorporaron nuevas funciones  de aseguramiento.\n"]
["Segunda Línea de Defensa14",14,"PROCESO GESTIÓN DE DESARROLLO Y COMPETITIVIDAD \nAdquisición de bienes y servicios para realizar las actividades misionales","Favorecimiento de un tercero a través de la aprobación de sobrecostos en los servicios e insumos adquiridos para realizar las actividades de la Subdirección de Gestión de Destino a través de contrato con agencia integral BTL.","Subdirección de Desarrollo y Competitividad","Subdirección de Desarrollo y Competitividad","X","X","X","Segunda Línea de Defensa","* Usar los estudios de mercado que definan los precios reales de la vigencia, como referencia para la aprobación de la adquisición de bienes y servicios a través de la agencia integral BTL; con el fin de evitar el favorecimiento de un tercero a través de la aprobación de sobrecostos en los servicios e insumos adquiridos.\n\n*JC-M02-V7 Manual de Supervisión e Interventoría del Instituto Distrital de Turismo.\n\nPara todos los elementos requeridos durante la vigencia que no se encuentren en el estudio de mercado o que presenten condiciones distintas a las especificaciones contenidas en el mismo, la agencia integral BTL pone a consideración del supervisor del contrato, tres (3) cotizaciones remitidas a través de correo electrónico junto con un cuadro comparativo. \n",5,4,5,4,4.5,"Alto Aseguramiento",{"$f":"VLOOKUP(Q20,Hoja2!$I$3:$O$8,2,0)","v":"La Oficina de Control Interno o quien haga sus veces confiará en los resultados del aseguramiento de la 2ª línea y basado en sus informes, auditará la efectividad de dicha función, evitando evaluar los controles de la 1ª línea."},{"$f":"IFERROR(VLOOKUP(Q20,Hoja2!$I$9:$O$13,2,0),\" \")","v":" "},"15/09/2021. Seguimiento realizado por Luisa Duarte y Diana Amaya conforme a las evidencias remitidas por el proceso de Gestión de Destino competitivo y sostenible.\n\nCon el fin de dar cumplimiento a la Adquisición de bienes y servicios para realizar las actividades misionales de Destino a través de contrato con agencia integral BTL, se evidencia que Entre 1-may-2021 y 30-ago-2021 fueron solicitados requerimientos fuera del tarifario en 24 oportunidades para el desarrollo de actividades o eventos con la BTL en la Subdirección de Gestión de Destino. En cada caso se solicitaron mínimo 3 cotizaciones y entre ellas se seleccionaba una por parte de la SGD luego del respectivo  análisis. (contrato de la BTL del 2020, finalizó en el mes de agosto.) \n\nTeniendo en cuenta lo anterior, la actividad se considera cumplida. ","La actividad  relacionada con \"Para todos los elementos requeridos durante la vigencia que no se encuentren en el tarifario o que presenten condiciones distintas a las especificaciones contenidas en el mismo, la agencia integral BTL pone a consideración del supervisor del contrato, tres (3) cotizaciones remitidas a través de correo electrónico junto con un cuadro comparativo\", que estaba definida para la vigencia 2021, se consolida para la vigencia 2022 en el Mapa de Aseguramiento.\n\nDe acuerdo a la consolidación de la anterior función de aseguramiento, el aspecto clave se fortalece en cuanto al criterio de comunicación de resultados, pasando  de  3 a 4 en su calificación, arrojando un nivel de confianza ALTO.\n\nPara este Aspecto clave de Éxito, no se incorporaron nuevas funciones  de aseguramiento.\n"]
["Segunda Línea de Defensa15",15,"PROCESO ATENCIÓN A LA CIUDADANÍA: Oportunidad en la asignación de la correspondencia allegada a la entidad por los diferentes canales.","Incumplimiento de los términos legales para la respuesta de las solicitudes de los usuarios.","Subdirección de Gestión Corporativa","Subdirección de Gestión Corporativa","X","X","X","Segunda Línea de Defensa","\n* AC-F02 Cuadro de Control y Seguimiento a PQRSD.\n* Realizar seguimiento semanal por medio de la Matriz Seguimiento PQRSD  AC-F04l. \n*Realizar una segunda verificación por parte de la auxiliar administrativa de Gestión Corporativa (Recepción y correspondencia) a los requerimientos que ingresan (Control Disciplinario Interno y Asesoría de Control Interno), con el fin de asegurar la asignación adecuada al destinatario. Dejar como evidencia envíos por correo electrónico.\n",5,4,5,3,4.3000000000000007,"Alto Aseguramiento",{"$f":"VLOOKUP(Q21,Hoja2!$I$3:$O$8,2,0)","v":"La Oficina de Control Interno o quien haga sus veces confiará en los resultados del aseguramiento de la 2ª línea y basado en sus informes, auditará la efectividad de dicha función, evitando evaluar los controles de la 1ª línea."},{"$f":"IFERROR(VLOOKUP(Q21,Hoja2!$I$9:$O$13,2,0),\" \")","v":" "},"15/09/2021. Seguimiento realizado por Luisa Duarte y Diana Amaya conforme a las evidencias remitidas por el proceso de Atención al Ciudadano. \n\nSe evidencia que desde mayo de 2021 se viene realizando  una segunda verificación por medio de correo electrónico a los requerimientos que ingresan, con el fin de asegurar la asignación adecuada al destinatario.\n\nTeniendo en cuenta lo anterior, la actividad se considera cumplida.  \n","Se modificó el nombre del  responsable y del área funcional, pasando de  Subdirección de Gestión Corporativa y Control Interno disciplinario a Subdirección de Gestión Corporativa\n\nSe actualiza la actividad referente a \"Realizar una segunda verificación por parte de la auxiliar administrativa de Gestión Corporativa (Recepción y correspondencia) a los requerimientos que ingresan (Control Disciplinario Interno y Asesoría de Control Interno), con el fin de asegurar la asignación adecuada al destinatario. Dejar como evidencia envíos por correo electrónico\". Esta Función estaba definida para la vigencia 2021, se consolida para la vigencia 2022 en el Mapa de Aseguramiento.\n\nDe acuerdo con la consolidación de la anterior función de aseguramiento el aspecto clave se fortalece en cuanto al criterio de Metodología, pasando de 3 a 4 en su calificación y arrojando un nivel de confianza ALTO.\n\nPara este Aspecto clave de Éxito, no se incorporaron nuevas funciones  de aseguramiento\n"]
["Segunda Línea de Defensa16",16,"PROCESO GESTIÓN DE MERCADEO TURÍSTICO: \nAseguramiento de parámetros para la adquisición de los servicios BTL","Insuficiente merchandising, para realizar la promoción de la ciudad.","Subdirección de Mercadeo Turístico","Subdirección de Mercadeo Turístico","X","X","X","Segunda Línea de Defensa","Solicitó plazo para la formulación correo 15 de diciembre de 2022.",5,4,5,5,4.7,"Alto Aseguramiento",{"$f":"VLOOKUP(Q22,Hoja2!$I$3:$O$8,2,0)","v":"La Oficina de Control Interno o quien haga sus veces confiará en los resultados del aseguramiento de la 2ª línea y basado en sus informes, auditará la efectividad de dicha función, evitando evaluar los controles de la 1ª línea."},{"$f":"IFERROR(VLOOKUP(Q22,Hoja2!$I$9:$O$13,2,0),\" \")","v":" "},"15/09/2021. Seguimiento realizado por Luisa Duarte y Diana Amaya conforme a las evidencias remitidas por el proceso de Promoción y Mercadeo.  \n\nPara el periodo evaluado se tenían programados llevar a cabo 2 actividades, así las cosas se evidencia lo siguiente:\n1). \"Documentar el procedimiento para la adquisición de servicios de BTL que incluya la adquisición de material promocional, estableciendo tiempos de las actividades y controles que permitan una adecuada y oportuna ejecución\":  Se evidencian gestiones respecto del procedimiento para la adquisición de servicios de BTL, no obstante este se encuentra pendiente de revisión final por parte del Subdirector de Promoción y Mercadeo. \n2). \"Realizar seguimiento en el II semestre al material promocional adquirido, según el procedimiento establecido\": esta actividad depende del cumplimiento de la acción planteada anteriormente, por tanto la misma no se podrá verificar hasta tanto se cumpla con el procedimiento establecido. \n\nAsí las cosas, las actividades deberán ser reprogramadas hasta tanto se de cumplimiento integral de las mismas. \n\n","De acuerdo con las dos funciones de aseguramiento que se encontraban pendientes en el último seguimiento, se observa que:\n* Se formuló el PMT-P11 Procedimiento Diseño y Producción de Piezas\nPromocionales Turísticas, el cual se publicó el 11 de octubre del 2021 en el siguiente link: https://intranet.idt.gov.co/promocion-y-mercadeo-turistico-de-ciudad\n* Se realizó el  seguimiento en el II semestre al material promocional adquirido, según el procedimiento establecido.\n\nLas funciones de aseguramiento que se tenían definidas para la vigencia 2021, se consolidan para la vigencia 2022.\n\nDe acuerdo a que las funciones de aseguramiento se mantienen,  el aspecto clave se fortalece en cuanto al criterio de Metodología, pasando  de  3 a 4 en su calificación, arrojando un nivel de confianza ALTO.\n\nNota: De acuerdo a información suministrada por los líderes técnicos,  el proceso realizará reformulación de sus riesgos, por lo que estos aspectos claves podrían actualizarse durante la vigencia.\n"]
["Segunda Línea de Defensa17",17,"PROCESO GESTIÓN DE MERCADEO TURÍSTICO\nAseguramiento de los parámetros para  el diseño, revisión y aprobación de piezas graficas y audiovisuales de promoción turística de la ciudad","Información incorrecta o incompleta en las piezas de promoción de ciudad en impresos, redes sociales, página web y app bogotadc.travel.","Subdirección de Promoción y Mercadeo","Subdirección de Promocion y Mercadeo","X","X","X","Segunda Línea de Defensa","Solicitó plazo para la formulación correo 15 de diciembre de 2022.",5,4,5,5,4.7,"Alto Aseguramiento",{"$f":"VLOOKUP(Q23,Hoja2!$I$3:$O$8,2,0)","v":"La Oficina de Control Interno o quien haga sus veces confiará en los resultados del aseguramiento de la 2ª línea y basado en sus informes, auditará la efectividad de dicha función, evitando evaluar los controles de la 1ª línea."},null,"15/09/2021. Seguimiento realizado por Luisa Duarte y Diana Amaya conforme a las evidencias remitidas por el proceso de Promoción y Mercadeo.  \n\nSe evidencian gestiones respecto de \"Documentar el procedimiento para el diseño, revisión y aprobación de piezas gráficas, audiovisuales y contenidos de promoción turística de Bogotá, estableciendo tiempos de las actividades y controles que permitan una adecuada y oportuna ejecución\"; , no obstante este se encuentra pendiente de revisión final por parte del Subdirector de Promoción y Mercadeo. \n\nAsí las cosas, la actividad deberán ser reprogramada hasta tanto se de cumplimiento integral de la misma. ","De acuerdo con la función de aseguramiento que se encontraba pendiente en el último seguimiento, se observa que se formuló el PMT-P12 Procedimiento para la Administración de los Medios Propios y Pagos de Promoción Turística de Bogotá, el cual se publicó el 11 de octubre del 2021 en el siguiente link: https://intranet.idt.gov.co/promocion-y-mercadeo-turistico-de-ciudad\n\nLas funciones de aseguramiento que se tenían definidas para la vigencia 2021, se consolidan para la vigencia 2022.\nDe acuerdo a que las funciones de aseguramiento se mantienen,  el aspecto clave se fortalece en cuanto al criterio de Metodología, pasando  de  3 a 4 en su calificación, arrojando un nivel de confianza ALTO.\nNota: De acuerdo a información suministrada por los Lideres Técnicos,  el proceso realizará reformulación de sus riesgos, por lo que estos aspectos claves podrían actualizarse durante la vigencia, \n"]
["Segunda Línea de Defensa18",18,"PROCESO GESTIÓN JURÍDICA Y CONTRACTUAL:\nAseguramiento de las actividades y  parámetros para adelantar procesos de selección bajo la modalidad de Licitación Pública.\n","Indebida adjudicación del contrato o limitación de proponentes.","Oficina Asesora  Juridica ","Oficina Asesora  Juridica ","X","X","X","Segunda Línea de Defensa","*Devolución de los trámites, cuando no cuenten con los requisitos legales según el proceso radicado a la OAJ.\n*JU-I08 Instructivo Licitación Pública.\n*JC-F23 Estudios Previos para Procesos Contractuales a través de Convocatoria Pública (Excepto Subasta Inversa y Mínima cuantía).\n* JC-F06 Lista de chequeo Licitación Pública.\n* Procedimiento de Licitación Pública en el cual se describan las actividades, responsables, puntos de control y tiempos de ejecución, así como definir políticas operacionales.\n",5,4,5,4,4.5,"Alto Aseguramiento",{"$f":"VLOOKUP(Q24,Hoja2!$I$3:$O$8,2,0)","v":"La Oficina de Control Interno o quien haga sus veces confiará en los resultados del aseguramiento de la 2ª línea y basado en sus informes, auditará la efectividad de dicha función, evitando evaluar los controles de la 1ª línea."},{"$f":"IFERROR(VLOOKUP(Q24,Hoja2!$I$9:$O$13,2,0),\" \")","v":" "},"15/09/2021. Seguimiento realizado por Luisa Duarte y Diana Amaya conforme a las evidencias remitidas por el proceso de Gestión Jurídica y Contractual. \n\nPara el periodo evaluado se tenían programados llevar a cabo 2 actividades, así las cosas se evidencia lo siguiente:\n\n1). \" Crear el procedimiento de Licitación Pública en el cual se describan las actividades, responsables, puntos de control y tiempos de ejecución, así como definir políticas operacionales\": se han adelantado mesas de trabajo con el equipo designado de la Oficina Asesora Jurídica y el procedimiento se encuentra en borrador, se tiene proyectada su adopción para el mes de septiembre de 2021.\n2). \"Socializar a la Entidad el documento creado Procedimiento de Licitación Pública\", esta actividad depende de la anterior, por tanto se tiene proyectada la socialización para el mes de septiembre de 2021.\nFecha: 30 de agosto de 2021.","* La actividad relacionada con \"Crear el procedimiento de Licitación Pública (...), que se encontraba pendiente, de acuerdo al último seguimiento, se cumplió, con la publicación el día 12 de diciembre del 2021.\n* Se define como una función de aseguramiento continúa el Procedimiento de Licitación Pública.\n* Los valores de los criterios evaluadores, continúan con la misma calificación, es decir con un nivel de Confianza ALTO.\n"]
["Segunda Línea de Defensa19",19,"PROCESO GESTIÓN DE TECNOLOGIA\nAsegurar que se entreguen las direcciones IP a través del servicio DHCP del controlador de dominio idt.gov.co","Perdida de disponibilidad de la información","Gestión de Inteligencia y DTI","Gestión de Inteligencia y DTI","X","X","X","Segunda Línea de Defensa","Solicitó plazo para la formulación Acta 01 de 2022 del 09 de diciembre de 2022.",5,4,5,5,4.7,"Alto Aseguramiento",{"$f":"VLOOKUP(Q25,Hoja2!$I$3:$O$8,2,0)","v":"La Oficina de Control Interno o quien haga sus veces confiará en los resultados del aseguramiento de la 2ª línea y basado en sus informes, auditará la efectividad de dicha función, evitando evaluar los controles de la 1ª línea."},{"$f":"IFERROR(VLOOKUP(Q25,Hoja2!$I$9:$O$13,2,0),\" \")","v":" "},"15/09/2021. Seguimiento realizado por Luisa Duarte y Diana Amaya conforme a las evidencias remitidas por el proceso de Gestión Tecnológica.  \n\nSe observa que desde abril a agosto de 2021 se ha llevado a cabo el Monitoreo del servicio DHCP con el fin de  garantizar la entrega de direcciones a quienes trabajan en la misionalidad o apoyo a la misma.\n\nTeniendo en cuenta lo anterior, la actividad se considera cumplida. ","La actividad relacionada con \"Monitoreo del servicio DHCP con el fin de garantizar la entrega de direcciones a quienes trabajan en la misionalidad o apoyo a la misma.\" que estaba definida para la vigencia 2021, se consolida para la vigencia 2022 en el Mapa de Aseguramiento.\n\nDe acuerdo a la consolidación de la anterior función de aseguramiento, el aspecto clave se fortalece en cuanto al criterio de Metodologías, pasando de  3 a 4 en su calificación, arrojando un nivel de confianza ALTO.\n"]
[null,20,null,null,null,null,null,null,null,{"$f":"IF(COUNTIF(G26:I26,\"X\")=3,\"Segunda Línea de Defensa\",IF(COUNTIF(G26:I26,\"X\")=2,\"Primera Línea de Defensa\",IF(COUNTIF(G26:I26,\"X\")=1,\"Primera Línea de Defensa\",)))","v":0},null,null,null,null,null,0," ",{"$f":"VLOOKUP(Q26,Hoja2!$I$3:$O$8,2,0)","v":" "},{"$f":"IFERROR(VLOOKUP(Q26,Hoja2!$I$9:$O$13,2,0),\" \")","v":" "}]
[null,21,{"$f":"Diagnóstico_RR!B188","v":0},null,null,null,null,null,null,0,null,null,null,null,null,0," ",{"$f":"VLOOKUP(Q27,Hoja2!$I$3:$O$8,2,0)","v":" "},{"$f":"IFERROR(VLOOKUP(Q27,Hoja2!$I$9:$O$13,2,0),\" \")","v":" "}]
[null,22,{"$f":"Diagnóstico_RR!B197","v":0},null,null,null,null,null,null,0,null,null,null,null,null,0," ",{"$f":"VLOOKUP(Q28,Hoja2!$I$3:$O$8,2,0)","v":" "},{"$f":"IFERROR(VLOOKUP(Q28,Hoja2!$I$9:$O$13,2,0),\" \")","v":" "}]
[null,23,{"$f":"Diagnóstico_RR!B206","v":0},null,null,null,null,null,null,0,null,null,null,null,null,0," ",{"$f":"VLOOKUP(Q29,Hoja2!$I$3:$O$8,2,0)","v":" "},{"$f":"IFERROR(VLOOKUP(Q29,Hoja2!$I$9:$O$13,2,0),\" \")","v":" "}]
[null,24,{"$f":"Diagnóstico_RR!B215","v":0},null,null,null,null,null,null,0,null,null,null,null,null,0," ",{"$f":"VLOOKUP(Q30,Hoja2!$I$3:$O$8,2,0)","v":" "},{"$f":"IFERROR(VLOOKUP(Q30,Hoja2!$I$9:$O$13,2,0),\" \")","v":" "}]
[null,25,{"$f":"Diagnóstico_RR!B224","v":0},null,null,null,null,null,null,0,null,null,null,null,null,0," ",{"$f":"VLOOKUP(Q31,Hoja2!$I$3:$O$8,2,0)","v":" "},{"$f":"IFERROR(VLOOKUP(Q31,Hoja2!$I$9:$O$13,2,0),\" \")","v":" "}]
[null,26,{"$f":"Diagnóstico_RR!B233","v":0},null,null,null,null,null,null,0,null,null,null,null,null,0," ",{"$f":"VLOOKUP(Q32,Hoja2!$I$3:$O$8,2,0)","v":" "},{"$f":"IFERROR(VLOOKUP(Q32,Hoja2!$I$9:$O$13,2,0),\" \")","v":" "}]
[null,27,{"$f":"Diagnóstico_RR!B242","v":0},null,null,null,null,null,null,0,null,null,null,null,null,0," ",{"$f":"VLOOKUP(Q33,Hoja2!$I$3:$O$8,2,0)","v":" "},{"$f":"IFERROR(VLOOKUP(Q33,Hoja2!$I$9:$O$13,2,0),\" \")","v":" "}]
[{"$f":"CONCATENATE(J34,B34)","v":"028"},28,{"$f":"Diagnóstico_RR!B251","v":0},null,null,null,null,null,null,0,null,null,null,null,null,0," ",{"$f":"VLOOKUP(Q34,Hoja2!$I$3:$O$8,2,0)","v":" "},{"$f":"IFERROR(VLOOKUP(Q34,Hoja2!$I$9:$O$13,2,0),\" \")","v":" "}]
[null,29,{"$f":"Diagnóstico_RR!B260","v":0},null,null,null,null,null,null,0,null,null,null,null,null,0," ",{"$f":"VLOOKUP(Q35,Hoja2!$I$3:$O$8,2,0)","v":" "},{"$f":"IFERROR(VLOOKUP(Q35,Hoja2!$I$9:$O$13,2,0),\" \")","v":" "}]
[null,null,null,null,null,null,null,null,null,0]

{"sheet":"Mapa de Aseguramiento","index":5,"n_rows":35,"n_cols":8,"rows_kept":35,"cut":false,"hidden":false,"merged":[[4,2,5,2],[4,3,5,3],[4,4,5,4],[4,5,5,5],[0,1,1,2],[0,3,0,7],[1,3,1,7],[3,1,3,5],[3,6,5,6],[3,7,5,7],[4,1,5,1]]}
[null,null,null,"MAPA DE ASEGURAMIENTO"]
[null,null,null,{"$f":"Estructura!C2","v":"INSTITUTO DISTRITAL DE TURISMO"}]
[]
[null,"SEGUNDA LÍNEA DE DEFENSA",null,null,null,null,"TERCERA LÍNEA DE DEFENSA\n(Oficina de Control Interno o quien haga sus veces) ","Rol de la Tercera Línea de Defensa"]
[null,"No. ","ASPECTO CLAVE DE ÉXITO\n(Programa, Proyecto, Proceso, Sistema, entre otros)","Riesgo asociado al aspecto clave de éxito","Responsable","Area Funcional"]
[]
[{"$f":"CONCATENATE($B$4,B7)","v":"SEGUNDA LÍNEA DE DEFENSA1"},1,{"$f":"IFERROR(VLOOKUP(A7,'Segunda línea'!$A$7:$S$36,3,FALSE),\"\")","v":"PROCESO DIRECCIONAMIENTO ESTRATÉGICO Y PLANEACIÓN\nCumplimiento de metas del Plan de Desarrollo Distrital"},{"$f":"IFERROR(VLOOKUP(A7,'Segunda línea'!$A$7:$S$36,4,FALSE),\"\")","v":"Afectación a la imagen institucional y sanciones por incumplimiento a las metas institucionales, debido a cambios en los planes, programas y proyectos establecidos en la planeación estratégica"},{"$f":"IFERROR(VLOOKUP(A7,'Segunda línea'!$A$7:$S$36,5,FALSE),\"\")","v":"Direccionamiento Estratégico y Planeación"},{"$f":"IFERROR(VLOOKUP(A7,'Segunda línea'!$A$7:$S$36,6,FALSE),\"\")","v":"Direccionamiento Estratégico y Planeación"},{"$f":"IFERROR(VLOOKUP(A7,'Segunda línea'!$A$7:$S$36,18,FALSE),\"\")","v":"La Oficina de Control Interno o quien haga sus veces confiará en los resultados del aseguramiento de la 2ª línea y basado en sus informes, auditará la efectividad de dicha función, evitando evaluar los controles de la 1ª línea."},{"$f":"IFERROR(VLOOKUP(A7,'Segunda línea'!$A$7:$S$36,19,FALSE),\"\")","v":" "}]
["SEGUNDA LÍNEA DE DEFENSA2",2,{"$f":"IFERROR(VLOOKUP(A8,'Segunda línea'!$A$7:$S$36,3,FALSE),\"\")","v":"PROCESO DIRECCIONAMIENTO ESTRATÉGICO Y PLANEACIÓN\nEficiencia y eficacia en la ejecución del presupuesto asignado a nivel de giros."},{"$f":"IFERROR(VLOOKUP(A8,'Segunda línea'!$A$7:$S$36,4,FALSE),\"\")","v":"Afectación a la imagen institucional y sanciones por incumplimiento a las metas institucionales, debido a cambios en los planes, programas y proyectos establecidos en la planeación estratégica"},{"$f":"IFERROR(VLOOKUP(A8,'Segunda línea'!$A$7:$S$36,5,FALSE),\"\")","v":"Direccionamiento Estratégico y Planeación"},{"$f":"IFERROR(VLOOKUP(A8,'Segunda línea'!$A$7:$S$36,6,FALSE),\"\")","v":"Direccionamiento Estratégico y Planeación"},{"$f":"IFERROR(VLOOKUP(A8,'Segunda línea'!$A$7:$S$36,18,FALSE),\"\")","v":"La Oficina de Control Interno o quien haga sus veces confiará en los resultados del aseguramiento de la 2ª línea y basado en sus informes, auditará la efectividad de dicha función, evitando evaluar los controles de la 1ª línea."}]
["SEGUNDA LÍNEA DE DEFENSA3",3,{"$f":"IFERROR(VLOOKUP(A9,'Segunda línea'!$A$7:$S$36,3,FALSE),\"\")","v":"PROCESO DIRECCIONAMIENTO ESTRATÉGICO Y PLANEACIÓN\nSeguimiento a Indicadores de Gestión"},{"$f":"IFERROR(VLOOKUP(A9,'Segunda línea'!$A$7:$S$36,4,FALSE),\"\")","v":"Afectación a la imagen institucional y sanciones por incumplimiento a las metas institucionales, debido a cambios en los planes, programas y proyectos establecidos en la planeación estratégica"},{"$f":"IFERROR(VLOOKUP(A9,'Segunda línea'!$A$7:$S$36,5,FALSE),\"\")","v":"Direccionamiento Estratégico y Planeación"},{"$f":"IFERROR(VLOOKUP(A9,'Segunda línea'!$A$7:$S$36,6,FALSE),\"\")","v":"Direccionamiento Estratégico y Planeación"},{"$f":"IFERROR(VLOOKUP(A9,'Segunda línea'!$A$7:$S$36,18,FALSE),\"\")","v":"La Oficina de Control Interno o quien haga sus veces confiará en los resultados del aseguramiento de la 2ª línea y basado en sus informes, auditará la efectividad de dicha función, evitando evaluar los controles de la 1ª línea."},{"$f":"IFERROR(VLOOKUP(A9,'Segunda línea'!$A$7:$S$36,19,FALSE),\"\")","v":" "}]
["SEGUNDA LÍNEA DE DEFENSA4",4,{"$f":"IFERROR(VLOOKUP(A10,'Segunda línea'!$A$7:$S$36,3,FALSE),\"\")","v":"PROCESO DIRECCIONAMIENTO ESTRATÉGICO Y PLANEACIÓN\nSeguimiento a las actividades del plan de acción de MIPG."},{"$f":"IFERROR(VLOOKUP(A10,'Segunda línea'!$A$7:$S$36,4,FALSE),\"\")","v":"Afectación a la imagen institucional y sanciones por incumplimiento a las metas institucionales, debido a cambios en los planes, programas y proyectos establecidos en la planeación estratégica"},{"$f":"IFERROR(VLOOKUP(A10,'Segunda línea'!$A$7:$S$36,5,FALSE),\"\")","v":"Direccionamiento Estratégico y Planeación"},{"$f":"IFERROR(VLOOKUP(A10,'Segunda línea'!$A$7:$S$36,6,FALSE),\"\")","v":"Direccionamiento Estratégico y Planeación"},{"$f":"IFERROR(VLOOKUP(A10,'Segunda línea'!$A$7:$S$36,18,FALSE),\"\")","v":"La Oficina de Control Interno o quien haga sus veces confiará en los resultados del aseguramiento de la 2ª línea y basado en sus informes, auditará la efectividad de dicha función, evitando evaluar los controles de la 1ª línea."},{"$f":"IFERROR(VLOOKUP(A10,'Segunda línea'!$A$7:$S$36,19,FALSE),\"\")","v":" "}]
["SEGUNDA LÍNEA DE DEFENSA5",5,{"$f":"IFERROR(VLOOKUP(A11,'Segunda línea'!$A$7:$S$36,3,FALSE),\"\")","v":"PROCESO CONTROL DISCIPLINARIO  INTERNO:\nRespuesta oportuna a las denuncias o quejas disciplinarias."},{"$f":"IFERROR(VLOOKUP(A11,'Segunda línea'!$A$7:$S$36,4,FALSE),\"\")","v":"Expedición de decisiones por fuera del término establecido en la ley."},{"$f":"IFERROR(VLOOKUP(A11,'Segunda línea'!$A$7:$S$36,5,FALSE),\"\")","v":"Control Disciplinario Interno"},{"$f":"IFERROR(VLOOKUP(A11,'Segunda línea'!$A$7:$S$36,6,FALSE),\"\")","v":"Control Disciplinario Interno"},{"$f":"IFERROR(VLOOKUP(A11,'Segunda línea'!$A$7:$S$36,18,FALSE),\"\")","v":"La Oficina de Control Interno o quien haga sus veces confiará en los resultados del aseguramiento de la 2ª línea y basado en sus informes, auditará la efectividad de dicha función, evitando evaluar los controles de la 1ª línea."},{"$f":"IFERROR(VLOOKUP(A11,'Segunda línea'!$A$7:$S$36,19,FALSE),\"\")","v":" "}]
["SEGUNDA LÍNEA DE DEFENSA6",6,{"$f":"IFERROR(VLOOKUP(A12,'Segunda línea'!$A$7:$S$36,3,FALSE),\"\")","v":"PROCESO GESTION DOCUMENTAL: \n\nParametrización y puesta en marcha  del Sistema de Gestión de Documentos Electrónicos de Archivo SGDEA (Sistema Integrado de Gestión de Archivo - SIGA).\n"},{"$f":"IFERROR(VLOOKUP(A12,'Segunda línea'!$A$7:$S$36,4,FALSE),\"\")","v":"Fallas en el manejo adecuado de la información, conservación y preservación documental"},{"$f":"IFERROR(VLOOKUP(A12,'Segunda línea'!$A$7:$S$36,5,FALSE),\"\")","v":"Subdirección de Gestión Corporativa"},{"$f":"IFERROR(VLOOKUP(A12,'Segunda línea'!$A$7:$S$36,6,FALSE),\"\")","v":"Subdirección de Gestión Corporativa"},{"$f":"IFERROR(VLOOKUP(A12,'Segunda línea'!$A$7:$S$36,18,FALSE),\"\")","v":"La Oficina de Control Interno o quien haga sus veces confiará en los resultados del aseguramiento de la 2ª línea y basado en sus informes, auditará la efectividad de dicha función, evitando evaluar los controles de la 1ª línea."},{"$f":"IFERROR(VLOOKUP(A12,'Segunda línea'!$A$7:$S$36,19,FALSE),\"\")","v":" "}]
["SEGUNDA LÍNEA DE DEFENSA7",7,{"$f":"IFERROR(VLOOKUP(A13,'Segunda línea'!$A$7:$S$36,3,FALSE),\"\")","v":"PROCESO COMUNICACIONES:\nPublicar oportunamente la información en la página web institucional de acuerdo a la Política de Gobierno Digital."},{"$f":"IFERROR(VLOOKUP(A13,'Segunda línea'!$A$7:$S$36,4,FALSE),\"\")","v":"Incumplimiento en las actividades descritas en el Plan Estratégico de Comunicaciones"},{"$f":"IFERROR(VLOOKUP(A13,'Segunda línea'!$A$7:$S$36,5,FALSE),\"\")","v":"Oficina Asesora de comunicaciones\n\nLíderes de proceso\n\nDireccionamiento Estratégico y Planeación"},{"$f":"IFERROR(VLOOKUP(A13,'Segunda línea'!$A$7:$S$36,6,FALSE),\"\")","v":"Oficina Asesora de Comunicaciones\n\nLíderes de Proceso\n\nDireccionamiento Estratégico y Planeación\n"},{"$f":"IFERROR(VLOOKUP(A13,'Segunda línea'!$A$7:$S$36,18,FALSE),\"\")","v":"La Oficina de Control Interno o quien haga sus veces confiará en los resultados del aseguramiento de la 2ª línea y basado en sus informes, auditará la efectividad de dicha función, evitando evaluar los controles de la 1ª línea."},{"$f":"IFERROR(VLOOKUP(A13,'Segunda línea'!$A$7:$S$36,19,FALSE),\"\")","v":" "}]
["SEGUNDA LÍNEA DE DEFENSA8",8,{"$f":"IFERROR(VLOOKUP(A14,'Segunda línea'!$A$7:$S$36,3,FALSE),\"\")","v":"PROCESO COMUNICACIONES:\nAsegurar la divulgación de los aspectos que se definen en la Matriz de Comunicaciones  Sistema Integrado de Gestión - SIG\" \n"},{"$f":"IFERROR(VLOOKUP(A14,'Segunda línea'!$A$7:$S$36,4,FALSE),\"\")","v":"Incumplimiento en las actividades descritas en el Plan Estratégico de Comunicaciones"},{"$f":"IFERROR(VLOOKUP(A14,'Segunda línea'!$A$7:$S$36,5,FALSE),\"\")","v":"Oficina Asesora de comunicaciones      \n Direccionamiento Estratégico y Planeación\nSub de Gestión Corporativa"},{"$f":"IFERROR(VLOOKUP(A14,'Segunda línea'!$A$7:$S$36,6,FALSE),\"\")","v":"Oficina Asesora de Comunicaciones "},{"$f":"IFERROR(VLOOKUP(A14,'Segunda línea'!$A$7:$S$36,18,FALSE),\"\")","v":"La Oficina de Control Interno o quien haga sus veces confiará en los resultados del aseguramiento de la 2ª línea y basado en sus informes, auditará la efectividad de dicha función, evitando evaluar los controles de la 1ª línea."},{"$f":"IFERROR(VLOOKUP(A14,'Segunda línea'!$A$7:$S$36,19,FALSE),\"\")","v":" "}]
["SEGUNDA LÍNEA DE DEFENSA9",9,{"$f":"IFERROR(VLOOKUP(A15,'Segunda línea'!$A$7:$S$36,3,FALSE),\"\")","v":"PROCESO GESTIÓN DE BIENES Y SERVICIOS:\nIdentificar los tiempos de vigencia de las licencias (software) de los equipos de cómputo del IDT."},{"$f":"IFERROR(VLOOKUP(A15,'Segunda línea'!$A$7:$S$36,4,FALSE),\"\")","v":"No realizar la entrada en forma oportuna de adquisición de elementos."},{"$f":"IFERROR(VLOOKUP(A15,'Segunda línea'!$A$7:$S$36,5,FALSE),\"\")","v":"Subdirección de Gestión Corporativa\n\nDireccionamiento Estratégico y Planeación"},{"$f":"IFERROR(VLOOKUP(A15,'Segunda línea'!$A$7:$S$36,6,FALSE),\"\")","v":"Subdirección de Gestión Corporativa\n\n"},{"$f":"IFERROR(VLOOKUP(A15,'Segunda línea'!$A$7:$S$36,18,FALSE),\"\")","v":"La Oficina de Control Interno o quien haga sus veces confiará en los resultados del aseguramiento de la 2ª línea y basado en sus informes, auditará la efectividad de dicha función, evitando evaluar los controles de la 1ª línea."},{"$f":"IFERROR(VLOOKUP(A15,'Segunda línea'!$A$7:$S$36,19,FALSE),\"\")","v":" "}]
["SEGUNDA LÍNEA DE DEFENSA10",10,{"$f":"IFERROR(VLOOKUP(A16,'Segunda línea'!$A$7:$S$36,3,FALSE),\"\")","v":"PROCESO GESTIÓN DEL TALENTO HUMANO: \nLineamiento para teletrabajo y trabajo en casa."},{"$f":"IFERROR(VLOOKUP(A16,'Segunda línea'!$A$7:$S$36,4,FALSE),\"\")","v":"Incumplimiento de los requisitos del Sistema de Gestión de Seguridad y Salud en el Trabajo."},{"$f":"IFERROR(VLOOKUP(A16,'Segunda línea'!$A$7:$S$36,5,FALSE),\"\")","v":"Subdirección de Gestión Corporativa"},{"$f":"IFERROR(VLOOKUP(A16,'Segunda línea'!$A$7:$S$36,6,FALSE),\"\")","v":"Subdirección de Gestión Corporativa"},{"$f":"IFERROR(VLOOKUP(A16,'Segunda línea'!$A$7:$S$36,18,FALSE),\"\")","v":"La Oficina de Control Interno o quien haga sus veces confiará en los resultados del aseguramiento de la 2ª línea y basado en sus informes, auditará la efectividad de dicha función, evitando evaluar los controles de la 1ª línea."},{"$f":"IFERROR(VLOOKUP(A16,'Segunda línea'!$A$7:$S$36,19,FALSE),\"\")","v":" "}]
["SEGUNDA LÍNEA DE DEFENSA11",11,{"$f":"IFERROR(VLOOKUP(A17,'Segunda línea'!$A$7:$S$36,3,FALSE),\"\")","v":"PROCESO GESTIÓN DEL TALENTO HUMANO: \nGestionar de manera oportuna y eficiente el pago de nómina y prestaciones\nsociales "},{"$f":"IFERROR(VLOOKUP(A17,'Segunda línea'!$A$7:$S$36,4,FALSE),\"\")","v":"NA"},{"$f":"IFERROR(VLOOKUP(A17,'Segunda línea'!$A$7:$S$36,5,FALSE),\"\")","v":"Subdirección de Gestión Corporativa"},{"$f":"IFERROR(VLOOKUP(A17,'Segunda línea'!$A$7:$S$36,6,FALSE),\"\")","v":"Subdirección de Gestión Corporativa"},{"$f":"IFERROR(VLOOKUP(A17,'Segunda línea'!$A$7:$S$36,18,FALSE),\"\")","v":"La Oficina de Control Interno o quien haga sus veces confiará en los resultados del aseguramiento de la 2ª línea y basado en sus informes, auditará la efectividad de dicha función, evitando evaluar los controles de la 1ª línea."},{"$f":"IFERROR(VLOOKUP(A17,'Segunda línea'!$A$7:$S$36,19,FALSE),\"\")","v":" "}]
["SEGUNDA LÍNEA DE DEFENSA12",12,{"$f":"IFERROR(VLOOKUP(A18,'Segunda línea'!$A$7:$S$36,3,FALSE),\"\")","v":"PROCESO GESTIÓN DE DESARROLLO Y COMPETITIVIDAD \nTrazabilidad de la documentación que soporta el cumplimiento de metas e indicadores"},{"$f":"IFERROR(VLOOKUP(A18,'Segunda línea'!$A$7:$S$36,4,FALSE),\"\")","v":"Pérdida en la trazabilidad de la documentación soporte asociada al cumplimiento de las metas e indicadores a cargo de la Subdirección de Desarrollo y Competitividad."},{"$f":"IFERROR(VLOOKUP(A18,'Segunda línea'!$A$7:$S$36,5,FALSE),\"\")","v":"Gestión de Desarrollo y Competitividad"},{"$f":"IFERROR(VLOOKUP(A18,'Segunda línea'!$A$7:$S$36,6,FALSE),\"\")","v":"Gestión de Desarrollo y Competitividad"},{"$f":"IFERROR(VLOOKUP(A18,'Segunda línea'!$A$7:$S$36,18,FALSE),\"\")","v":"La Oficina de Control Interno o quien haga sus veces confiará en los resultados del aseguramiento de la 2ª línea y basado en sus informes, auditará la efectividad de dicha función, evitando evaluar los controles de la 1ª línea."},{"$f":"IFERROR(VLOOKUP(A18,'Segunda línea'!$A$7:$S$36,19,FALSE),\"\")","v":" "}]
["SEGUNDA LÍNEA DE DEFENSA13",13,{"$f":"IFERROR(VLOOKUP(A19,'Segunda línea'!$A$7:$S$36,3,FALSE),\"\")","v":"PROCESO GESTIÓN DE DESARROLLO Y COMPETITIVIDAD \nCumplimiento del Plan Anual de Adquisiciones"},{"$f":"IFERROR(VLOOKUP(A19,'Segunda línea'!$A$7:$S$36,4,FALSE),\"\")","v":"Incumplimiento del Plan Anual de Adquisiciones"},{"$f":"IFERROR(VLOOKUP(A19,'Segunda línea'!$A$7:$S$36,5,FALSE),\"\")","v":"Subdirección de Desarrollo y Competitividad"},{"$f":"IFERROR(VLOOKUP(A19,'Segunda línea'!$A$7:$S$36,6,FALSE),\"\")","v":"Subdirección Desarrollo y Competitividad"},{"$f":"IFERROR(VLOOKUP(A19,'Segunda línea'!$A$7:$S$36,18,FALSE),\"\")","v":"La Oficina de Control Interno o quien haga sus veces confiará en los resultados del aseguramiento de la 2ª línea y basado en sus informes, auditará la efectividad de dicha función, evitando evaluar los controles de la 1ª línea."},{"$f":"IFERROR(VLOOKUP(A19,'Segunda línea'!$A$7:$S$36,19,FALSE),\"\")","v":" "}]
["SEGUNDA LÍNEA DE DEFENSA14",14,{"$f":"IFERROR(VLOOKUP(A20,'Segunda línea'!$A$7:$S$36,3,FALSE),\"\")","v":"PROCESO GESTIÓN DE DESARROLLO Y COMPETITIVIDAD \nAdquisición de bienes y servicios para realizar las actividades misionales"},{"$f":"IFERROR(VLOOKUP(A20,'Segunda línea'!$A$7:$S$36,4,FALSE),\"\")","v":"Favorecimiento de un tercero a través de la aprobación de sobrecostos en los servicios e insumos adquiridos para realizar las actividades de la Subdirección de Gestión de Destino a través de contrato con agencia integral BTL."},{"$f":"IFERROR(VLOOKUP(A20,'Segunda línea'!$A$7:$S$36,5,FALSE),\"\")","v":"Subdirección de Desarrollo y Competitividad"},{"$f":"IFERROR(VLOOKUP(A20,'Segunda línea'!$A$7:$S$36,6,FALSE),\"\")","v":"Subdirección de Desarrollo y Competitividad"},{"$f":"IFERROR(VLOOKUP(A20,'Segunda línea'!$A$7:$S$36,18,FALSE),\"\")","v":"La Oficina de Control Interno o quien haga sus veces confiará en los resultados del aseguramiento de la 2ª línea y basado en sus informes, auditará la efectividad de dicha función, evitando evaluar los controles de la 1ª línea."},{"$f":"IFERROR(VLOOKUP(A20,'Segunda línea'!$A$7:$S$36,19,FALSE),\"\")","v":" "}]
["SEGUNDA LÍNEA DE DEFENSA15",15,{"$f":"IFERROR(VLOOKUP(A21,'Segunda línea'!$A$7:$S$36,3,FALSE),\"\")","v":"PROCESO ATENCIÓN A LA CIUDADANÍA: Oportunidad en la asignación de la correspondencia allegada a la entidad por los diferentes canales."},{"$f":"IFERROR(VLOOKUP(A21,'Segunda línea'!$A$7:$S$36,4,FALSE),\"\")","v":"Incumplimiento de los términos legales para la respuesta de las solicitudes de los usuarios."},{"$f":"IFERROR(VLOOKUP(A21,'Segunda línea'!$A$7:$S$36,5,FALSE),\"\")","v":"Subdirección de Gestión Corporativa"},{"$f":"IFERROR(VLOOKUP(A21,'Segunda línea'!$A$7:$S$36,6,FALSE),\"\")","v":"Subdirección de Gestión Corporativa"},{"$f":"IFERROR(VLOOKUP(A21,'Segunda línea'!$A$7:$S$36,18,FALSE),\"\")","v":"La Oficina de Control Interno o quien haga sus veces confiará en los resultados del aseguramiento de la 2ª línea y basado en sus informes, auditará la efectividad de dicha función, evitando evaluar los controles de la 1ª línea."},{"$f":"IFERROR(VLOOKUP(A21,'Segunda línea'!$A$7:$S$36,19,FALSE),\"\")","v":" "}]
["SEGUNDA LÍNEA DE DEFENSA16",16,{"$f":"IFERROR(VLOOKUP(A22,'Segunda línea'!$A$7:$S$36,3,FALSE),\"\")","v":"PROCESO GESTIÓN DE MERCADEO TURÍSTICO: \nAseguramiento de parámetros para la adquisición de los servicios BTL"},{"$f":"IFERROR(VLOOKUP(A22,'Segunda línea'!$A$7:$S$36,4,FALSE),\"\")","v":"Insuficiente merchandising, para realizar la promoción de la ciudad."},{"$f":"IFERROR(VLOOKUP(A22,'Segunda línea'!$A$7:$S$36,5,FALSE),\"\")","v":"Subdirección de Mercadeo Turístico"},{"$f":"IFERROR(VLOOKUP(A22,'Segunda línea'!$A$7:$S$36,6,FALSE),\"\")","v":"Subdirección de Mercadeo Turístico"},{"$f":"IFERROR(VLOOKUP(A22,'Segunda línea'!$A$7:$S$36,18,FALSE),\"\")","v":"La Oficina de Control Interno o quien haga sus veces confiará en los resultados del aseguramiento de la 2ª línea y basado en sus informes, auditará la efectividad de dicha función, evitando evaluar los controles de la 1ª línea."},{"$f":"IFERROR(VLOOKUP(A22,'Segunda línea'!$A$7:$S$36,19,FALSE),\"\")","v":" "}]
["SEGUNDA LÍNEA DE DEFENSA17",17,{"$f":"IFERROR(VLOOKUP(A23,'Segunda línea'!$A$7:$S$36,3,FALSE),\"\")","v":"PROCESO GESTIÓN DE MERCADEO TURÍSTICO\nAseguramiento de los parámetros para  el diseño, revisión y aprobación de piezas graficas y audiovisuales de promoción turística de la ciudad"},{"$f":"IFERROR(VLOOKUP(A23,'Segunda línea'!$A$7:$S$36,4,FALSE),\"\")","v":"Información incorrecta o incompleta en las piezas de promoción de ciudad en impresos, redes sociales, página web y app bogotadc.travel."},{"$f":"IFERROR(VLOOKUP(A23,'Segunda línea'!$A$7:$S$36,5,FALSE),\"\")","v":"Subdirección de Promoción y Mercadeo"},{"$f":"IFERROR(VLOOKUP(A23,'Segunda línea'!$A$7:$S$36,6,FALSE),\"\")","v":"Subdirección de Promocion y Mercadeo"},{"$f":"IFERROR(VLOOKUP(A23,'Segunda línea'!$A$7:$S$36,18,FALSE),\"\")","v":"La Oficina de Control Interno o quien haga sus veces confiará en los resultados del aseguramiento de la 2ª línea y basado en sus informes, auditará la efectividad de dicha función, evitando evaluar los controles de la 1ª línea."},{"$f":"IFERROR(VLOOKUP(A23,'Segunda línea'!$A$7:$S$36,19,FALSE),\"\")","v":0}]
["SEGUNDA LÍNEA DE DEFENSA18",18,{"$f":"IFERROR(VLOOKUP(A24,'Segunda línea'!$A$7:$S$36,3,FALSE),\"\")","v":"PROCESO GESTIÓN JURÍDICA Y CONTRACTUAL:\nAseguramiento de las actividades y  parámetros para adelantar procesos de selección bajo la modalidad de Licitación Pública.\n"},{"$f":"IFERROR(VLOOKUP(A24,'Segunda línea'!$A$7:$S$36,4,FALSE),\"\")","v":"Indebida adjudicación del contrato o limitación de proponentes."},{"$f":"IFERROR(VLOOKUP(A24,'Segunda línea'!$A$7:$S$36,5,FALSE),\"\")","v":"Oficina Asesora  Juridica "},{"$f":"IFERROR(VLOOKUP(A24,'Segunda línea'!$A$7:$S$36,6,FALSE),\"\")","v":"Oficina Asesora  Juridica "},{"$f":"IFERROR(VLOOKUP(A24,'Segunda línea'!$A$7:$S$36,18,FALSE),\"\")","v":"La Oficina de Control Interno o quien haga sus veces confiará en los resultados del aseguramiento de la 2ª línea y basado en sus informes, auditará la efectividad de dicha función, evitando evaluar los controles de la 1ª línea."}]
["SEGUNDA LÍNEA DE DEFENSA19",19,{"$f":"IFERROR(VLOOKUP(A25,'Segunda línea'!$A$7:$S$36,3,FALSE),\"\")","v":"PROCESO GESTIÓN DE TECNOLOGIA\nAsegurar que se entreguen las direcciones IP a través del servicio DHCP del controlador de dominio idt.gov.co"},{"$f":"IFERROR(VLOOKUP(A25,'Segunda línea'!$A$7:$S$36,4,FALSE),\"\")","v":"Perdida de disponibilidad de la información"},{"$f":"IFERROR(VLOOKUP(A25,'Segunda línea'!$A$7:$S$36,5,FALSE),\"\")","v":"Gestión de Inteligencia y DTI"},{"$f":"IFERROR(VLOOKUP(A25,'Segunda línea'!$A$7:$S$36,6,FALSE),\"\")","v":"Gestión de Inteligencia y DTI"},{"$f":"IFERROR(VLOOKUP(A25,'Segunda línea'!$A$7:$S$36,18,FALSE),\"\")","v":"La Oficina de Control Interno o quien haga sus veces confiará en los resultados del aseguramiento de la 2ª línea y basado en sus informes, auditará la efectividad de dicha función, evitando evaluar los controles de la 1ª línea."},{"$f":"IFERROR(VLOOKUP(A25,'Segunda línea'!$A$7:$S$36,19,FALSE),\"\")","v":" "}]
["SEGUNDA LÍNEA DE DEFENSA20",20,{"$f":"IFERROR(VLOOKUP(A26,'Segunda línea'!$A$7:$S$36,3,FALSE),\"\")","v":""},{"$f":"IFERROR(VLOOKUP(A26,'Segunda línea'!$A$7:$S$36,4,FALSE),\"\")","v":""},{"$f":"IFERROR(VLOOKUP(A26,'Segunda línea'!$A$7:$S$36,5,FALSE),\"\")","v":""},{"$f":"IFERROR(VLOOKUP(A26,'Segunda línea'!$A$7:$S$36,6,FALSE),\"\")","v":""},{"$f":"IFERROR(VLOOKUP(A26,'Segunda línea'!$A$7:$S$36,18,FALSE),\"\")","v":""},{"$f":"IFERROR(VLOOKUP(A26,'Segunda línea'!$A$7:$S$36,19,FALSE),\"\")","v":""}]
[null,21,{"$f":"IFERROR(VLOOKUP(A27,'Segunda línea'!$A$7:$S$36,3,FALSE),\"\")","v":""},{"$f":"IFERROR(VLOOKUP(A27,'Segunda línea'!$A$7:$S$36,4,FALSE),\"\")","v":""},{"$f":"IFERROR(VLOOKUP(A27,'Segunda línea'!$A$7:$S$36,5,FALSE),\"\")","v":""},{"$f":"IFERROR(VLOOKUP(A27,'Segunda línea'!$A$7:$S$36,6,FALSE),\"\")","v":""},{"$f":"IFERROR(VLOOKUP(A27,'Segunda línea'!$A$7:$S$36,18,FALSE),\"\")","v":""},{"$f":"IFERROR(VLOOKUP(A27,'Segunda línea'!$A$7:$S$36,19,FALSE),\"\")","v":""}]
[null,22,{"$f":"IFERROR(VLOOKUP(A28,'Segunda línea'!$A$7:$S$36,3,FALSE),\"\")","v":""},{"$f":"IFERROR(VLOOKUP(A28,'Segunda línea'!$A$7:$S$36,4,FALSE),\"\")","v":""},{"$f":"IFERROR(VLOOKUP(A28,'Segunda línea'!$A$7:$S$36,5,FALSE),\"\")","v":""},{"$f":"IFERROR(VLOOKUP(A28,'Segunda línea'!$A$7:$S$36,6,FALSE),\"\")","v":""},{"$f":"IFERROR(VLOOKUP(A28,'Segunda línea'!$A$7:$S$36,18,FALSE),\"\")","v":""},{"$f":"IFERROR(VLOOKUP(A28,'Segunda línea'!$A$7:$S$36,19,FALSE),\"\")","v":""}]
[null,23,{"$f":"IFERROR(VLOOKUP(A29,'Segunda línea'!$A$7:$S$36,3,FALSE),\"\")","v":""},{"$f":"IFERROR(VLOOKUP(A29,'Segunda línea'!$A$7:$S$36,4,FALSE),\"\")","v":""},{"$f":"IFERROR(VLOOKUP(A29,'Segunda línea'!$A$7:$S$36,5,FALSE),\"\")","v":""},{"$f":"IFERROR(VLOOKUP(A29,'Segunda línea'!$A$7:$S$36,6,FALSE),\"\")","v":""},{"$f":"IFERROR(VLOOKUP(A29,'Segunda línea'!$A$7:$S$36,18,FALSE),\"\")","v":""},{"$f":"IFERROR(VLOOKUP(A29,'Segunda línea'!$A$7:$S$36,19,FALSE),\"\")","v":""}]
[null,24,{"$f":"IFERROR(VLOOKUP(A30,'Segunda línea'!$A$7:$S$36,3,FALSE),\"\")","v":""},{"$f":"IFERROR(VLOOKUP(A30,'Segunda línea'!$A$7:$S$36,4,FALSE),\"\")","v":""},{"$f":"IFERROR(VLOOKUP(A30,'Segunda línea'!$A$7:$S$36,5,FALSE),\"\")","v":""},{"$f":"IFERROR(VLOOKUP(A30,'Segunda línea'!$A$7:$S$36,6,FALSE),\"\")","v":""},{"$f":"IFERROR(VLOOKUP(A30,'Segunda línea'!$A$7:$S$36,18,FALSE),\"\")","v":""},{"$f":"IFERROR(VLOOKUP(A30,'Segunda línea'!$A$7:$S$36,19,FALSE),\"\")","v":""}]
[null,25,{"$f":"IFERROR(VLOOKUP(A31,'Segunda línea'!$A$7:$S$36,3,FALSE),\"\")","v":""},{"$f":"IFERROR(VLOOKUP(A31,'Segunda línea'!$A$7:$S$36,4,FALSE),\"\")","v":""},{"$f":"IFERROR(VLOOKUP(A31,'Segunda línea'!$A$7:$S$36,5,FALSE),\"\")","v":""},{"$f":"IFERROR(VLOOKUP(A31,'Segunda línea'!$A$7:$S$36,6,FALSE),\"\")","v":""},{"$f":"IFERROR(VLOOKUP(A31,'Segunda línea'!$A$7:$S$36,18,FALSE),\"\")","v":""},{"$f":"IFERROR(VLOOKUP(A31,'Segunda línea'!$A$7:$S$36,19,FALSE),\"\")","v":""}]
[null,26,{"$f":"IFERROR(VLOOKUP(A32,'Segunda línea'!$A$7:$S$36,3,FALSE),\"\")","v":""},{"$f":"IFERROR(VLOOKUP(A32,'Segunda línea'!$A$7:$S$36,4,FALSE),\"\")","v":""},{"$f":"IFERROR(VLOOKUP(A32,'Segunda línea'!$A$7:$S$36,5,FALSE),\"\")","v":""},{"$f":"IFERROR(VLOOKUP(A32,'Segunda línea'!$A$7:$S$36,6,FALSE),\"\")","v":""},{"$f":"IFERROR(VLOOKUP(A32,'Segunda línea'!$A$7:$S$36,18,FALSE),\"\")","v":""},{"$f":"IFERROR(VLOOKUP(A32,'Segunda línea'!$A$7:$S$36,19,FALSE),\"\")","v":""}]
[null,27,{"$f":"IFERROR(VLOOKUP(A33,'Segunda línea'!$A$7:$S$36,3,FALSE),\"\")","v":""},{"$f":"IFERROR(VLOOKUP(A33,'Segunda línea'!$A$7:$S$36,4,FALSE),\"\")","v":""},{"$f":"IFERROR(VLOOKUP(A33,'Segunda línea'!$A$7:$S$36,5,FALSE),\"\")","v":""},{"$f":"IFERROR(VLOOKUP(A33,'Segunda línea'!$A$7:$S$36,6,FALSE),\"\")","v":""},{"$f":"IFERROR(VLOOKUP(A33,'Segunda línea'!$A$7:$S$36,18,FALSE),\"\")","v":""},{"$f":"IFERROR(VLOOKUP(A33,'Segunda línea'!$A$7:$S$36,19,FALSE),\"\")","v":""}]
[null,28,{"$f":"IFERROR(VLOOKUP(A34,'Segunda línea'!$A$7:$S$36,3,FALSE),\"\")","v":""},{"$f":"IFERROR(VLOOKUP(A34,'Segunda línea'!$A$7:$S$36,4,FALSE),\"\")","v":""},{"$f":"IFERROR(VLOOKUP(A34,'Segunda línea'!$A$7:$S$36,5,FALSE),\"\")","v":""},{"$f":"IFERROR(VLOOKUP(A34,'Segunda línea'!$A$7:$S$36,6,FALSE),\"\")","v":""},{"$f":"IFERROR(VLOOKUP(A34,'Segunda línea'!$A$7:$S$36,18,FALSE),\"\")","v":""},{"$f":"IFERROR(VLOOKUP(A34,'Segunda línea'!$A$7:$S$36,19,FALSE),\"\")","v":""}]
[null,29,{"$f":"IFERROR(VLOOKUP(A35,'Segunda línea'!$A$7:$S$36,3,FALSE),\"\")","v":""},{"$f":"IFERROR(VLOOKUP(A35,'Segunda línea'!$A$7:$S$36,4,FALSE),\"\")","v":""},{"$f":"IFERROR(VLOOKUP(A35,'Segunda línea'!$A$7:$S$36,5,FALSE),\"\")","v":""},{"$f":"IFERROR(VLOOKUP(A35,'Segunda línea'!$A$7:$S$36,6,FALSE),\"\")","v":""},{"$f":"IFERROR(VLOOKUP(A35,'Segunda línea'!$A$7:$S$36,18,FALSE),\"\")","v":""},{"$f":"IFERROR(VLOOKUP(A35,'Segunda línea'!$A$7:$S$36,19,FALSE),\"\")","v":""}]

{"sheet":"Hoja2","index":6,"n_rows":25,"n_cols":10,"rows_kept":25,"cut":false,"hidden":true,"merged":[[20,1,20,6],[2,9,2,14],[3,8,5,8],[3,9,5,14],[6,1,6,6],[6,9,6,14],[7,9,7,14],[8,9,9,14],[8,8,9,8],[10,8,11,8],[10,9,11,14],[12,9,12,14],[13,1,13,6]]}
[]
[]
[null,null,null,null,null,null,null,null,"Bajo Aseguramiento","La Oficina de Control Interno o quien haga sus veces deberá auditar y generar hallazgos y recomendaciones a la función de aseguramiento para su mejora y evaluará los controles de 1ª línea de defensa que corresponderían  a la 2ª línea de defensa."]
[null,null,null,null,null,null,null,null,"Medio Aseguramiento","La Oficina de Control Interno o quien haga sus veces deberá auditar y generar hallazgos y recomendaciones a la función de aseguramiento (2ª línea) para su mejora y evaluará los aspectos que considere relevantes de la 1ª línea de defensa."]
[]
[]
[null,"La Oficina de Control Interno o quien haga sus veces confiará en los resultados del aseguramiento de la 2ª línea y basado en sus informes, auditará la efectividad de dicha función, evitando evaluar los controles de la 1ª línea.\n",null,null,null,null,null,null,"Alto Aseguramiento","La Oficina de Control Interno o quien haga sus veces confiará en los resultados del aseguramiento de la 2ª línea y basado en sus informes, auditará la efectividad de dicha función, evitando evaluar los controles de la 1ª línea."]
[null,null,null,null,null,null,null,null," "," "]
[null,null,null,null,null,null,null,null,"Medio Aseguramiento","Priorizar en su Plan Anual de Auditoría"]
[]
[null,null,null,null,null,null,null,null,"Bajo Aseguramiento","Priorizar en su Plan Anual de Auditoría"]
[]
[null,null,null,null,null,null,null,null,"Alto Aseguramiento"," "]
[null,"La Oficina de Control Interno o quien haga sus veces deberá auditar y generar hallazgos y recomendaciones a la función de aseguramiento (2ª línea) para su mejora y evaluará los aspectos que considere relevantes de la 1ª línea de defensa.",null,null,null,null,null,null," "]
[]
[]
[]
[]
[]
[]
["Bajo Aseguramiento","La Oficina de Control Interno o quien haga sus veces deberá auditar y generar hallazgos y recomendaciones a la función de aseguramiento para su mejora y evaluará los controles de 1ª línea de defensa que corresponderían  a la 2ª línea de defensa."]
[]
[]
[]
["Bajo Aseguramiento","Priorizar en su Plan Anual de Auditoría"]